Workbook

Sheet Title
A16: Repair Order Analysis
A17: And Summary | K17: =TODAY() -> 2017-07-28
A30: Dealership
A33: Student
A36: Class and ID Number | H36: Computer Application by George A. Parker Management Instructor NADA Dealer Academy

Sheet Tech Pay
B1: Tech # | C1: Tech Pay Per FRH
B2: 61 | C2: 34
B3: 131 | C3: 22
B4: 223 | C4: 30
B5: 439 | C5: 15
B6: 1354 | C6: 26
B7: 1404 | C7: 24
B8: 1408 | C8: 28
B9: 2087 | C9: 13.5
B10: 2111 | C10: 19
B11: 2140 | C11: 20
B12: 2170 | C12: 31
B13: 2331 | C13: 19
B14: 2384 | C14: 12.5
B15: 2529 | C15: 30
B16: 2623 | C16: 25
B17: 2664 | C17: 15
B18: 2674 | C18: 12.5
B19: 2762 | C19: 12.5
B20: 2678 | C20: 12.5
B21: 2768 | C21: 12.5
B22: 2801 | C22: 12.5
B23: 2816 | C23: 20
B24: 2830 | C24: 24
B25: 2833 | C25: 17
B26: 2840 | C26: 12.5
B27: 3044 | C27: 22

Sheet Input Sheet
C2: Repair Order Analysis Input Sheet
G3: Competitive Labor | L3: Maintenance Labor | Q3: Repair Labor | V3: Total Cost of Labor | W3: One Item Repair Order
C4: RO Number | D4: Year | E4: Model | F4: Mileage | G4: Labor Sales | H4: Flat Rate Hours | I4: Technican Number | J4: Pay Per FRH | K4: Labor Cost | L4: Labor Sales | M4: Flat Rate Hours | N4: Technican Number | O4: Pay Per FRH | P4: Labor Cost | Q4: Labor Sales | R4: Flat Rate Hours | S4: Technican Number | T4: Pay Per FRH | U4: Labor Cost
B6: 1 | C6: 630003 | D6: 2013 | E6: SUBURBAN | F6: 66161 | L6: 90.52 | M6: 1.5 | N6: 2762 | O6: 12.5 | P6: =IF(ISERROR(M6*O6)," ",M6*O6) -> 18.75 | T6: =IF(ISERROR(VLOOKUP('Input Sheet'!$S6,TechNumber,2,FALSE)),"",VLOOKUP('Input Sheet'!$S6,TechNumber,2,FALSE)) ->  | U6: =IF(ISERROR(R6*T6),"",R6*T6) ->  | V6: =SUM(U6,P6,K6) -> 18.75 | W6: 0
B7: 2 | C7: 630006 | D7: 2015 | E7: SIERRA | F7: 32182 | J7: =IF(ISERROR(VLOOKUP('Input Sheet'!$I7,TechNumber,2,FALSE)),"",VLOOKUP('Input Sheet'!$I7,TechNumber,2,FALSE)) ->  | K7: =IF(ISERROR(H7*J7),"",H7*J7) ->  | L7: 36.52 | M7: 0.9 | N7: 2762 | O7: 12.5 | P7: 11.25 | V7: =SUM(U7,P7,K7) -> 11.25 | W7: 0
B8: 3 | C8: 630009 | D8: 2010 | E8: WRANGLER | F8: 147618 | J8: =IF(ISERROR(VLOOKUP('Input Sheet'!$I8,TechNumber,2,FALSE)),"",VLOOKUP('Input Sheet'!$I8,TechNumber,2,FALSE)) ->  | K8: =IF(ISERROR(H8*J8),"",H8*J8) ->  | L8: 66.47 | M8: 1.2 | N8: 2860 | O8: 12.5 | P8: 15 | T8: =IF(ISERROR(VLOOKUP('Input Sheet'!$S8,TechNumber,2,FALSE)),"",VLOOKUP('Input Sheet'!$S8,TechNumber,2,FALSE)) ->  | V8: 15 | W8: 0
B9: 4 | C9: 630010 | D9: 2016 | E9: TERRAIN | F9: 26550 | J9: =IF(ISERROR(VLOOKUP('Input Sheet'!$I9,TechNumber,2,FALSE)),"",VLOOKUP('Input Sheet'!$I9,TechNumber,2,FALSE)) ->  | L9: 26.52 | M9: 0.7 | N9: 2860 | O9: 12.5 | P9: 8.75 | T9: =IF(ISERROR(VLOOKUP('Input Sheet'!$S9,TechNumber,2,FALSE)),"",VLOOKUP('Input Sheet'!$S9,TechNumber,2,FALSE)) ->  | V9: 8.75 | W9: 0
B10: 5 | C10: 630013 | D10: 2012 | E10: SIENNA | F10: 52281 | J10: =IF(ISERROR(VLOOKUP('Input Sheet'!$I10,TechNumber,2,FALSE)),"",VLOOKUP('Input Sheet'!$I10,TechNumber,2,FALSE)) ->  | K10: =IF(ISERROR(H10*J10),"",H10*J10) ->  | L10: 24.95 | M10: 0.7 | N10: 2087 | O10: 13.5 | P10: 9.45 | T10: =IF(ISERROR(VLOOKUP('Input Sheet'!$S10,TechNumber,2,FALSE)),"",VLOOKUP('Input Sheet'!$S10,TechNumber,2,FALSE)) ->  | V10: 9.45 | W10: 0
B11: 6 | C11: 630016 | D11: 2013 | E11: YUKON | F11: 92099 | G11: 1078 | H11: 9.6 | I11: 2331 | J11: 19 | K11: 182.4 | O11: =IF(ISERROR(VLOOKUP('Input Sheet'!$N11,TechNumber,2,FALSE)),"",VLOOKUP('Input Sheet'!$N11,TechNumber,2,FALSE)) ->  | Q11: 183.2 | R11: 1.5 | S11: 1354 | T11: 26 | U11: 39 | V11: 221.4 | W11: 0
B12: 7 | C12: 630018 | D12: 2016 | E12: TERRAIN | F12: 19222 | J12: =IF(ISERROR(VLOOKUP('Input Sheet'!$I12,TechNumber,2,FALSE)),"",VLOOKUP('Input Sheet'!$I12,TechNumber,2,FALSE)) ->  | L12: 26.52 | M12: 0.7 | N12: 2678 | O12: 12.5 | P12: 8.75 | T12: =IF(ISERROR(VLOOKUP('Input Sheet'!$S12,TechNumber,2,FALSE)),"",VLOOKUP('Input Sheet'!$S12,TechNumber,2,FALSE)) ->  | V12: 8.75 | W12: 0
B13: 8 | C13: 630024 | D13: 2017 | E13: ENCLAVE | F13: 7620 | J13: =IF(ISERROR(VLOOKUP('Input Sheet'!$I13,TechNumber,2,FALSE)),"",VLOOKUP('Input Sheet'!$I13,TechNumber,2,FALSE)) ->  | L13: 16.57 | M13: 0.4 | N13: 2678 | O13: 12.5 | P13: 5 | T13: =IF(ISERROR(VLOOKUP('Input Sheet'!$S13,TechNumber,2,FALSE)),"",VLOOKUP('Input Sheet'!$S13,TechNumber,2,FALSE)) ->  | V13: 5 | W13: 1
B14: 9 | C14: 630025 | D14: 2013 | E14: MALIBU | F14: 81249 | G14: 125 | H14: 1.5 | I14: 2830 | J14: 24 | K14: 36 | O14: =IF(ISERROR(VLOOKUP('Input Sheet'!$N14,TechNumber,2,FALSE)),"",VLOOKUP('Input Sheet'!$N14,TechNumber,2,FALSE)) ->  | T14: =IF(ISERROR(VLOOKUP('Input Sheet'!$S14,TechNumber,2,FALSE)),"",VLOOKUP('Input Sheet'!$S14,TechNumber,2,FALSE)) ->  | V14: 36 | W14: 0
B15: 10 | C15: 630026 | D15: 2008 | E15: YUKON | F15: 215634 | J15: =IF(ISERROR(VLOOKUP('Input Sheet'!$I15,TechNumber,2,FALSE)),"",VLOOKUP('Input Sheet'!$I15,TechNumber,2,FALSE)) ->  | L15: 56.52 | M15: 1.2 | N15: 2768 | O15: 12.5 | P15: 15 | T15: =IF(ISERROR(VLOOKUP('Input Sheet'!$S15,TechNumber,2,FALSE)),"",VLOOKUP('Input Sheet'!$S15,TechNumber,2,FALSE)) ->  | V15: 15 | W15: 0
B16: 11 | C16: 630029 | D16: 2006 | E16: GTO | F16: 102288 | J16: =IF(ISERROR(VLOOKUP('Input Sheet'!$I16,TechNumber,2,FALSE)),"",VLOOKUP('Input Sheet'!$I16,TechNumber,2,FALSE)) ->  | L16: 16.57 | M16: 0.4 | N16: 2678 | O16: 12.5 | P16: 5 | T16: =IF(ISERROR(VLOOKUP('Input Sheet'!$S16,TechNumber,2,FALSE)),"",VLOOKUP('Input Sheet'!$S16,TechNumber,2,FALSE)) ->  | V16: 5 | W16: 1
B17: 12 | C17: 630036 | D17: 2015 | E17: SIERRA | F17: 48110 | J17: =IF(ISERROR(VLOOKUP('Input Sheet'!$I17,TechNumber,2,FALSE)),"",VLOOKUP('Input Sheet'!$I17,TechNumber,2,FALSE)) ->  | O17: =IF(ISERROR(VLOOKUP('Input Sheet'!$N17,TechNumber,2,FALSE)),"",VLOOKUP('Input Sheet'!$N17,TechNumber,2,FALSE)) ->  | Q17: 236 | R17: 2 | S17: 131 | T17: 22 | U17: 44 | V17: 44 | W17: 0
B18: 13 | C18: 630037 | D18: 2016 | E18: REGAL | F18: 23894 | J18: =IF(ISERROR(VLOOKUP('Input Sheet'!$I18,TechNumber,2,FALSE)),"",VLOOKUP('Input Sheet'!$I18,TechNumber,2,FALSE)) ->  | L18: 30 | M18: 0.6 | N18: 2762 | O18: 12.5 | P18: 7.5 | T18: =IF(ISERROR(VLOOKUP('Input Sheet'!$S18,TechNumber,2,FALSE)),"",VLOOKUP('Input Sheet'!$S18,TechNumber,2,FALSE)) ->  | V18: 7.5 | W18: 1
B19: 14 | C19: 630039 | D19: 2016 | E19: SIERRA | F19: 30149 | J19: =IF(ISERROR(VLOOKUP('Input Sheet'!$I19,TechNumber,2,FALSE)),"",VLOOKUP('Input Sheet'!$I19,TechNumber,2,FALSE)) ->  | L19: 200 | M19: 0.7 | N19: 2860 | O19: 12.5 | P19: 8.75 | T19: =IF(ISERROR(VLOOKUP('Input Sheet'!$S19,TechNumber,2,FALSE)),"",VLOOKUP('Input Sheet'!$S19,TechNumber,2,FALSE)) ->  | V19: 8.75 | W19: 0
B20: 15 | C20: 630040 | D20: 2016 | E20: TERRAIN | F20: 27399 | J20: =IF(ISERROR(VLOOKUP('Input Sheet'!$I20,TechNumber,2,FALSE)),"",VLOOKUP('Input Sheet'!$I20,TechNumber,2,FALSE)) ->  | L20: 16.57 | M20: 0.4 | N20: 2087 | O20: 13.5 | P20: 5.4 | T20: =IF(ISERROR(VLOOKUP('Input Sheet'!$S20,TechNumber,2,FALSE)),"",VLOOKUP('Input Sheet'!$S20,TechNumber,2,FALSE)) ->  | V20: 5.4 | W20: 1
B21: 16 | C21: 630043 | D21: 2011 | E21: SIERRA | F21: 168435 | J21: =IF(ISERROR(VLOOKUP('Input Sheet'!$I21,TechNumber,2,FALSE)),"",VLOOKUP('Input Sheet'!$I21,TechNumber,2,FALSE)) ->  | L21: 26.52 | M21: 0.7 | N21: 2768 | O21: 12.5 | P21: 8.75 | T21: =IF(ISERROR(VLOOKUP('Input Sheet'!$S21,TechNumber,2,FALSE)),"",VLOOKUP('Input Sheet'!$S21,TechNumber,2,FALSE)) ->  | V21: 8.75 | W21: 0
B22: 17 | C22: 630045 | D22: 2006 | E22: CORVETTE | F22: 42596 | J22: =IF(ISERROR(VLOOKUP('Input Sheet'!$I22,TechNumber,2,FALSE)),"",VLOOKUP('Input Sheet'!$I22,TechNumber,2,FALSE)) ->  | O22: =IF(ISERROR(VLOOKUP('Input Sheet'!$N22,TechNumber,2,FALSE)),"",VLOOKUP('Input Sheet'!$N22,TechNumber,2,FALSE)) ->  | Q22: 590 | R22: 5 | S22: 131 | T22: 22 | U22: 110 | V22: 110 | W22: 0
B23: 18 | C23: 630048 | D23: 2015 | E23: SILVERADO | F23: 49027 | J23: =IF(ISERROR(VLOOKUP('Input Sheet'!$I23,TechNumber,2,FALSE)),"",VLOOKUP('Input Sheet'!$I23,TechNumber,2,FALSE)) ->  | L23: 16.57 | M23: 0.4 | N23: 2768 | O23: 12.5 | P23: 5 | T23: =IF(ISERROR(VLOOKUP('Input Sheet'!$S23,TechNumber,2,FALSE)),"",VLOOKUP('Input Sheet'!$S23,TechNumber,2,FALSE)) ->  | V23: 5 | W23: 1
B24: 19 | C24: 630049 | D24: 2016 | E24: TERRAIN | F24: 17267 | J24: =IF(ISERROR(VLOOKUP('Input Sheet'!$I24,TechNumber,2,FALSE)),"",VLOOKUP('Input Sheet'!$I24,TechNumber,2,FALSE)) ->  | L24: 26.52 | M24: 0.7 | N24: 2678 | O24: 12.5 | P24: 8.75 | T24: =IF(ISERROR(VLOOKUP('Input Sheet'!$S24,TechNumber,2,FALSE)),"",VLOOKUP('Input Sheet'!$S24,TechNumber,2,FALSE)) ->  | V24: 8.75 | W24: 0
B25: 20 | C25: 630050 | D25: 2015 | E25: SIERRA | F25: 27094 | J25: =IF(ISERROR(VLOOKUP('Input Sheet'!$I25,TechNumber,2,FALSE)),"",VLOOKUP('Input Sheet'!$I25,TechNumber,2,FALSE)) ->  | L25: 14.62 | M25: 0.4 | N25: 2678 | O25: 12.5 | P25: 5 | T25: =IF(ISERROR(VLOOKUP('Input Sheet'!$S25,TechNumber,2,FALSE)),"",VLOOKUP('Input Sheet'!$S25,TechNumber,2,FALSE)) ->  | V25: 5 | W25: 1
B26: 21 | C26: 630051 | D26: 2016 | E26: TERRAIN | F26: 20260 | J26: =IF(ISERROR(VLOOKUP('Input Sheet'!$I26,TechNumber,2,FALSE)),"",VLOOKUP('Input Sheet'!$I26,TechNumber,2,FALSE)) ->  | L26: 53.52 | M26: 1.2 | N26: 2768 | O26: 12.8 | P26: 15.36 | T26: =IF(ISERROR(VLOOKUP('Input Sheet'!$S26,TechNumber,2,FALSE)),"",VLOOKUP('Input Sheet'!$S26,TechNumber,2,FALSE)) ->  | V26: 15.36 | W26: 0
B27: 22 | C27: 630052 | D27: 2015 | E27: TERRAIN | F27: 16712 | J27: =IF(ISERROR(VLOOKUP('Input Sheet'!$I27,TechNumber,2,FALSE)),"",VLOOKUP('Input Sheet'!$I27,TechNumber,2,FALSE)) ->  | L27: 26.52 | M27: 0.7 | N27: 2678 | O27: 12.5 | P27: 8.75 | T27: =IF(ISERROR(VLOOKUP('Input Sheet'!$S27,TechNumber,2,FALSE)),"",VLOOKUP('Input Sheet'!$S27,TechNumber,2,FALSE)) ->  | V27: 8.75 | W27: 0
B28: 23 | C28: 630056 | D28: 2015 | E28: YUKON | F28: 29079 | G28: 80 | H28: 1 | I28: 131 | J28: 22 | K28: 22 | T28: =IF(ISERROR(VLOOKUP('Input Sheet'!$S28,TechNumber,2,FALSE)),"",VLOOKUP('Input Sheet'!$S28,TechNumber,2,FALSE)) ->  | V28: 22 | W28: 0
B29: 24 | C29: 630059 | D29: 2012 | E29: TERRAIN | F29: 76069 | J29: =IF(ISERROR(VLOOKUP('Input Sheet'!$I29,TechNumber,2,FALSE)),"",VLOOKUP('Input Sheet'!$I29,TechNumber,2,FALSE)) ->  | L29: 16.57 | M29: 0.4 | N29: 2768 | O29: 12.5 | P29: 5 | T29: =IF(ISERROR(VLOOKUP('Input Sheet'!$S29,TechNumber,2,FALSE)),"",VLOOKUP('Input Sheet'!$S29,TechNumber,2,FALSE)) ->  | V29: 5 | W29: 1
B30: 25 | C30: 630064 | D30: 2016 | E30: SIERRA | F30: 20925 | J30: =IF(ISERROR(VLOOKUP('Input Sheet'!$I30,TechNumber,2,FALSE)),"",VLOOKUP('Input Sheet'!$I30,TechNumber,2,FALSE)) ->  | L30: 27 | M30: 0.3 | N30: 2674 | O30: 12.5 | P30: 3.75 | T30: =IF(ISERROR(VLOOKUP('Input Sheet'!$S30,TechNumber,2,FALSE)),"",VLOOKUP('Input Sheet'!$S30,TechNumber,2,FALSE)) ->  | V30: 3.75 | W30: 1
B31: 26 | C31: 630067 | D31: 2008 | E31: AURA | F31: 103932 | J31: =IF(ISERROR(VLOOKUP('Input Sheet'!$I31,TechNumber,2,FALSE)),"",VLOOKUP('Input Sheet'!$I31,TechNumber,2,FALSE)) ->  | L31: 13.36 | M31: 0.4 | N31: 2678 | O31: 12.5 | P31: 5 | T31: =IF(ISERROR(VLOOKUP('Input Sheet'!$S31,TechNumber,2,FALSE)),"",VLOOKUP('Input Sheet'!$S31,TechNumber,2,FALSE)) ->  | V31: 5 | W31: 0
B32: 27 | C32: 630069 | D32: 2015 | E32: TERRAIN | F32: 87540 | J32: =IF(ISERROR(VLOOKUP('Input Sheet'!$I32,TechNumber,2,FALSE)),"",VLOOKUP('Input Sheet'!$I32,TechNumber,2,FALSE)) ->  | L32: 26.52 | M32: 0.7 | N32: 2768 | O32: 12.5 | P32: 8.75 | T32: =IF(ISERROR(VLOOKUP('Input Sheet'!$S32,TechNumber,2,FALSE)),"",VLOOKUP('Input Sheet'!$S32,TechNumber,2,FALSE)) ->  | V32: 8.75 | W32: 0
B33: 28 | C33: 630071 | D33: 2012 | E33: ACADIA | F33: 104376 | G33: 129.95 | H33: 1.5 | I33: 61 | J33: 34 | K33: 51 | L33: 48 | M33: 1.2 | N33: 2678 | O33: 12.5 | P33: 15 | T33: =IF(ISERROR(VLOOKUP('Input Sheet'!$S33,TechNumber,2,FALSE)),"",VLOOKUP('Input Sheet'!$S33,TechNumber,2,FALSE)) ->  | V33: 66 | W33: 0
B34: 29 | C34: 630073 | D34: 2013 | E34: TERRAIN | F34: 46165 | J34: =IF(ISERROR(VLOOKUP('Input Sheet'!$I34,TechNumber,2,FALSE)),"",VLOOKUP('Input Sheet'!$I34,TechNumber,2,FALSE)) ->  | L34: 12 | M34: 0.3 | N34: 2674 | O34: 12.5 | P34: 3.75 | T34: =IF(ISERROR(VLOOKUP('Input Sheet'!$S34,TechNumber,2,FALSE)),"",VLOOKUP('Input Sheet'!$S34,TechNumber,2,FALSE)) ->  | V34: 3.75 | W34: 1
B35: 30 | C35: 630075 | D35: 2015 | E35: SIERRA | F35: 46084 | J35: =IF(ISERROR(VLOOKUP('Input Sheet'!$I35,TechNumber,2,FALSE)),"",VLOOKUP('Input Sheet'!$I35,TechNumber,2,FALSE)) ->  | L35: 24.57 | M35: 0.7 | N35: 2768 | O35: 12.5 | P35: 8.75 | T35: =IF(ISERROR(VLOOKUP('Input Sheet'!$S35,TechNumber,2,FALSE)),"",VLOOKUP('Input Sheet'!$S35,TechNumber,2,FALSE)) ->  | V35: 8.75 | W35: 0
B36: 31 | C36: 630081 | D36: 2014 | E36: CAMARO | F36: 71002 | J36: =IF(ISERROR(VLOOKUP('Input Sheet'!$I36,TechNumber,2,FALSE)),"",VLOOKUP('Input Sheet'!$I36,TechNumber,2,FALSE)) ->  | L36: 16.57 | M36: 0.4 | N36: 2678 | O36: 12.5 | P36: 5 | T36: =IF(ISERROR(VLOOKUP('Input Sheet'!$S36,TechNumber,2,FALSE)),"",VLOOKUP('Input Sheet'!$S36,TechNumber,2,FALSE)) ->  | V36: 5 | W36: 1
B37: 32 | C37: 630090 | D37: 2012 | E37: SIERRA | F37: 49898 | J37: =IF(ISERROR(VLOOKUP('Input Sheet'!$I37,TechNumber,2,FALSE)),"",VLOOKUP('Input Sheet'!$I37,TechNumber,2,FALSE)) ->  | L37: 26.52 | M37: 0.7 | N37: 2801 | O37: 12.5 | P37: 8.75 | T37: =IF(ISERROR(VLOOKUP('Input Sheet'!$S37,TechNumber,2,FALSE)),"",VLOOKUP('Input Sheet'!$S37,TechNumber,2,FALSE)) ->  | V37: 8.75 | W37: 0
B38: 33 | C38: 630091 | D38: 2011 | E38: F-150 | F38: 133571 | J38: =IF(ISERROR(VLOOKUP('Input Sheet'!$I38,TechNumber,2,FALSE)),"",VLOOKUP('Input Sheet'!$I38,TechNumber,2,FALSE)) ->  | L38: 24.95 | M38: 0.7 | N38: 2768 | O38: 12.5 | P38: 8.75 | T38: =IF(ISERROR(VLOOKUP('Input Sheet'!$S38,TechNumber,2,FALSE)),"",VLOOKUP('Input Sheet'!$S38,TechNumber,2,FALSE)) ->  | V38: 8.75 | W38: 0
B39: 34 | C39: 630092 | D39: 2009 | E39: SILVERADO | F39: 56244 | G39: 50 | H39: 0.5 | I39: 1354 | J39: 26 | K39: 13 | O39: =IF(ISERROR(VLOOKUP('Input Sheet'!$N39,TechNumber,2,FALSE)),"",VLOOKUP('Input Sheet'!$N39,TechNumber,2,FALSE)) ->  | Q39: 244.26 | R39: 2 | S39: 1354 | T39: 26 | U39: 52 | V39: 65 | W39: 0
B40: 35 | C40: 630096 | D40: 2015 | E40: YUKON | F40: 44801 | J40: =IF(ISERROR(VLOOKUP('Input Sheet'!$I40,TechNumber,2,FALSE)),"",VLOOKUP('Input Sheet'!$I40,TechNumber,2,FALSE)) ->  | O40: =IF(ISERROR(VLOOKUP('Input Sheet'!$N40,TechNumber,2,FALSE)),"",VLOOKUP('Input Sheet'!$N40,TechNumber,2,FALSE)) ->  | Q40: 641.22 | R40: 5.5 | S40: 2830/2529 | T40: 28 | U40: 154 | V40: 154 | W40: 0
B41: 36 | C41: 630099 | D41: 2011 | E41: SIERRA | F41: 38406 | G41: 439.69 | H41: 5.3 | I41: 2623/1354/2830 | J41: 25 | K41: 132.5 | L41: 74.52 | M41: 1.9 | N41: 2768/2830 | O41: 20 | P41: 38 | Q41: 295 | R41: 2.5 | S41: 2830 | T41: 24 | U41: 60 | V41: 230.5 | W41: 0
B42: 37 | C42: 631001 | D42: 2008 | E42: LACROSSE | F42: 152107 | J42: =IF(ISERROR(VLOOKUP('Input Sheet'!$I42,TechNumber,2,FALSE)),"",VLOOKUP('Input Sheet'!$I42,TechNumber,2,FALSE)) ->  | L42: 18.36 | M42: 0.4 | N42: 2762 | O42: 12.5 | P42: 5 | T42: =IF(ISERROR(VLOOKUP('Input Sheet'!$S42,TechNumber,2,FALSE)),"",VLOOKUP('Input Sheet'!$S42,TechNumber,2,FALSE)) ->  | V42: 5 | W42: 0
B43: 38 | C43: 631003 | D43: 2014 | E43: ENCORE | F43: 54260 | J43: =IF(ISERROR(VLOOKUP('Input Sheet'!$I43,TechNumber,2,FALSE)),"",VLOOKUP('Input Sheet'!$I43,TechNumber,2,FALSE)) ->  | L43: 21.57 | M43: 0.4 | N43: 2781 | O43: 12.5 | P43: 5 | T43: =IF(ISERROR(VLOOKUP('Input Sheet'!$S43,TechNumber,2,FALSE)),"",VLOOKUP('Input Sheet'!$S43,TechNumber,2,FALSE)) ->  | V43: 5 | W43: 0
B44: 39 | C44: 631005 | D44: 2016 | E44: ACADIA | F44: 26420 | J44: =IF(ISERROR(VLOOKUP('Input Sheet'!$I44,TechNumber,2,FALSE)),"",VLOOKUP('Input Sheet'!$I44,TechNumber,2,FALSE)) ->  | L44: 26.52 | M44: 0.7 | N44: 2781 | O44: 12.5 | P44: 8.75 | T44: =IF(ISERROR(VLOOKUP('Input Sheet'!$S44,TechNumber,2,FALSE)),"",VLOOKUP('Input Sheet'!$S44,TechNumber,2,FALSE)) ->  | V44: 8.75 | W44: 0
B45: 40 | C45: 631007 | D45: 2016 | E45: ENVISION | F45: 28340 | J45: =IF(ISERROR(VLOOKUP('Input Sheet'!$I45,TechNumber,2,FALSE)),"",VLOOKUP('Input Sheet'!$I45,TechNumber,2,FALSE)) ->  | L45: 26.52 | M45: 0.7 | N45: 2860 | O45: 12.5 | P45: 8.75 | T45: =IF(ISERROR(VLOOKUP('Input Sheet'!$S45,TechNumber,2,FALSE)),"",VLOOKUP('Input Sheet'!$S45,TechNumber,2,FALSE)) ->  | V45: 8.75 | W45: 0
B46: 41 | C46: 631009 | D46: 2008 | E46: VUE | F46: 44316 | J46: =IF(ISERROR(VLOOKUP('Input Sheet'!$I46,TechNumber,2,FALSE)),"",VLOOKUP('Input Sheet'!$I46,TechNumber,2,FALSE)) ->  | O46: =IF(ISERROR(VLOOKUP('Input Sheet'!$N46,TechNumber,2,FALSE)),"",VLOOKUP('Input Sheet'!$N46,TechNumber,2,FALSE)) ->  | Q46: 59 | R46: 0.5 | S46: 2331 | T46: 19 | U46: 9.5 | V46: 9.5 | W46: 1
B47: 42 | C47: 631016 | D47: 2014 | E47: ENCLAVE | F47: 34488 | J47: =IF(ISERROR(VLOOKUP('Input Sheet'!$I47,TechNumber,2,FALSE)),"",VLOOKUP('Input Sheet'!$I47,TechNumber,2,FALSE)) ->  | L47: 66.52 | M47: 1.2 | N47: 2678 | O47: 12.5 | P47: 15 | T47: =IF(ISERROR(VLOOKUP('Input Sheet'!$S47,TechNumber,2,FALSE)),"",VLOOKUP('Input Sheet'!$S47,TechNumber,2,FALSE)) ->  | V47: 15 | W47: 0
B48: 43 | C48: 631017 | D48: 2014 | E48: SILVERADO | F48: 33497 | G48: 59.95 | H48: 1 | I48: 2816 | J48: 20 | K48: 20 | L48: 39.95 | M48: 0.8 | N48: 2816 | O48: 20 | P48: 16 | T48: =IF(ISERROR(VLOOKUP('Input Sheet'!$S48,TechNumber,2,FALSE)),"",VLOOKUP('Input Sheet'!$S48,TechNumber,2,FALSE)) ->  | V48: 36 | W48: 0
B49: 44 | C49: 631019 | D49: 2016 | E49: CHEVROLET | F49: 28569 | J49: =IF(ISERROR(VLOOKUP('Input Sheet'!$I49,TechNumber,2,FALSE)),"",VLOOKUP('Input Sheet'!$I49,TechNumber,2,FALSE)) ->  | L49: 26.52 | M49: 0.7 | N49: 2762 | O49: 12.5 | P49: 8.75 | T49: =IF(ISERROR(VLOOKUP('Input Sheet'!$S49,TechNumber,2,FALSE)),"",VLOOKUP('Input Sheet'!$S49,TechNumber,2,FALSE)) ->  | V49: 8.75 | W49: 0
B50: 45 | C50: 631021 | D50: 2004 | E50: ALERO | F50: 111000 | J50: =IF(ISERROR(VLOOKUP('Input Sheet'!$I50,TechNumber,2,FALSE)),"",VLOOKUP('Input Sheet'!$I50,TechNumber,2,FALSE)) ->  | O50: =IF(ISERROR(VLOOKUP('Input Sheet'!$N50,TechNumber,2,FALSE)),"",VLOOKUP('Input Sheet'!$N50,TechNumber,2,FALSE)) ->  | Q50: 244.26 | R50: 2 | S50: 131 | T50: 22 | U50: 44 | V50: 44 | W50: 0
B51: 46 | C51: 631027 | D51: 2014 | E51: REGAL | F51: 45709 | J51: =IF(ISERROR(VLOOKUP('Input Sheet'!$I51,TechNumber,2,FALSE)),"",VLOOKUP('Input Sheet'!$I51,TechNumber,2,FALSE)) ->  | L51: 16.57 | M51: 0.4 | N51: 2781 | O51: 12.5 | P51: 5 | T51: =IF(ISERROR(VLOOKUP('Input Sheet'!$S51,TechNumber,2,FALSE)),"",VLOOKUP('Input Sheet'!$S51,TechNumber,2,FALSE)) ->  | V51: 5 | W51: 1
B52: 47 | C52: 631029 | D52: 2012 | E52: ACADIA | F52: 63847 | J52: =IF(ISERROR(VLOOKUP('Input Sheet'!$I52,TechNumber,2,FALSE)),"",VLOOKUP('Input Sheet'!$I52,TechNumber,2,FALSE)) ->  | O52: =IF(ISERROR(VLOOKUP('Input Sheet'!$N52,TechNumber,2,FALSE)),"",VLOOKUP('Input Sheet'!$N52,TechNumber,2,FALSE)) ->  | Q52: 177 | R52: 1.5 | S52: 2170 | T52: 32 | U52: 48 | V52: 48 | W52: 1
B53: 48 | C53: 631039 | D53: 2009 | E53: CANYON | F53: 138232 | J53: =IF(ISERROR(VLOOKUP('Input Sheet'!$I53,TechNumber,2,FALSE)),"",VLOOKUP('Input Sheet'!$I53,TechNumber,2,FALSE)) ->  | L53: 13.36 | M53: 0.4 | N53: 2781 | O53: 12.5 | P53: 5 | T53: =IF(ISERROR(VLOOKUP('Input Sheet'!$S53,TechNumber,2,FALSE)),"",VLOOKUP('Input Sheet'!$S53,TechNumber,2,FALSE)) ->  | V53: 5 | W53: 1
B54: 49 | C54: 631040 | D54: 2011 | E54: MALIBU | F54: 53819 | J54: =IF(ISERROR(VLOOKUP('Input Sheet'!$I54,TechNumber,2,FALSE)),"",VLOOKUP('Input Sheet'!$I54,TechNumber,2,FALSE)) ->  | L54: 13.36 | M54: 0.4 | N54: 2768 | O54: 12.5 | P54: 5 | T54: =IF(ISERROR(VLOOKUP('Input Sheet'!$S54,TechNumber,2,FALSE)),"",VLOOKUP('Input Sheet'!$S54,TechNumber,2,FALSE)) ->  | V54: 5 | W54: 1
B55: 50 | C55: 631042 | D55: 2016 | E55: ACADIA | F55: 42324 | J55: =IF(ISERROR(VLOOKUP('Input Sheet'!$I55,TechNumber,2,FALSE)),"",VLOOKUP('Input Sheet'!$I55,TechNumber,2,FALSE)) ->  | L55: 16.57 | M55: 0.4 | N55: 2087 | O55: 13.5 | P55: 5.4 | Q55: 118 | R55: 1 | S55: 131 | T55: 22 | U55: 22 | V55: 27.4 | W55: 0
B56: 51 | C56: 631043 | D56: 2015 | E56: SILVERADO | F56: 35557 | J56: =IF(ISERROR(VLOOKUP('Input Sheet'!$I56,TechNumber,2,FALSE)),"",VLOOKUP('Input Sheet'!$I56,TechNumber,2,FALSE)) ->  | L56: 26.52 | M56: 0.8 | N56: 2860 | O56: 12.5 | P56: 10 | T56: =IF(ISERROR(VLOOKUP('Input Sheet'!$S56,TechNumber,2,FALSE)),"",VLOOKUP('Input Sheet'!$S56,TechNumber,2,FALSE)) ->  | V56: 10 | W56: 0
B57: 52 | C57: 631049 | D57: 2011 | E57: ACADIA | F57: 120043 | G57: 139.95 | H57: 1.5 | I57: 2816 | J57: 20 | K57: 30 | O57: =IF(ISERROR(VLOOKUP('Input Sheet'!$N57,TechNumber,2,FALSE)),"",VLOOKUP('Input Sheet'!$N57,TechNumber,2,FALSE)) ->  | Q57: 247.8 | R57: 2.1 | S57: 2816 | T57: 20 | U57: 42 | V57: 72 | W57: 0
B58: 53 | C58: 631050 | D58: 2009 | E58: ENCLAVE | F58: 94062 | J58: =IF(ISERROR(VLOOKUP('Input Sheet'!$I58,TechNumber,2,FALSE)),"",VLOOKUP('Input Sheet'!$I58,TechNumber,2,FALSE)) ->  | O58: =IF(ISERROR(VLOOKUP('Input Sheet'!$N58,TechNumber,2,FALSE)),"",VLOOKUP('Input Sheet'!$N58,TechNumber,2,FALSE)) ->  | Q58: 916.89 | R58: 6.5 | S58: 2170 | T58: 32 | U58: 208 | V58: 208 | W58: 1
B59: 54 | C59: 631055 | D59: 2012 | E59: MALIBU | F59: 81283 | G59: 222.1 | H59: 2.9 | I59: 2786/2180 | J59: 16 | K59: 46.4 | L59: 35 | M59: 1 | N59: 2786 | O59: 12.5 | P59: 12.5 | T59: =IF(ISERROR(VLOOKUP('Input Sheet'!$S59,TechNumber,2,FALSE)),"",VLOOKUP('Input Sheet'!$S59,TechNumber,2,FALSE)) ->  | V59: 58.9 | W59: 0
B60: 55 | C60: 631059 | D60: 2015 | E60: LACROSSE | F60: 30178 | J60: =IF(ISERROR(VLOOKUP('Input Sheet'!$I60,TechNumber,2,FALSE)),"",VLOOKUP('Input Sheet'!$I60,TechNumber,2,FALSE)) ->  | L60: 16.57 | M60: 0.4 | N60: 2781 | O60: 12.5 | P60: 5 | T60: =IF(ISERROR(VLOOKUP('Input Sheet'!$S60,TechNumber,2,FALSE)),"",VLOOKUP('Input Sheet'!$S60,TechNumber,2,FALSE)) ->  | V60: 5 | W60: 1
B61: 56 | C61: 631063 | D61: 2012 | E61: SIERRA | F61: 51378 | J61: =IF(ISERROR(VLOOKUP('Input Sheet'!$I61,TechNumber,2,FALSE)),"",VLOOKUP('Input Sheet'!$I61,TechNumber,2,FALSE)) ->  | L61: 16.57 | M61: 0.4 | N61: 2860 | O61: 12.5 | P61: 5 | T61: =IF(ISERROR(VLOOKUP('Input Sheet'!$S61,TechNumber,2,FALSE)),"",VLOOKUP('Input Sheet'!$S61,TechNumber,2,FALSE)) ->  | V61: 5 | W61: 1
B62: 57 | C62: 631069 | D62: 2007 | E62: 9-7 SAAB | F62: 130382 | J62: =IF(ISERROR(VLOOKUP('Input Sheet'!$I62,TechNumber,2,FALSE)),"",VLOOKUP('Input Sheet'!$I62,TechNumber,2,FALSE)) ->  | L62: 13.36 | M62: 0.4 | N62: 2762 | O62: 12.5 | P62: 5 | T62: =IF(ISERROR(VLOOKUP('Input Sheet'!$S62,TechNumber,2,FALSE)),"",VLOOKUP('Input Sheet'!$S62,TechNumber,2,FALSE)) ->  | V62: 5 | W62: 1
B63: 58 | C63: 631073 | D63: 2014 | E63: SIERRA | F63: 33580 | J63: =IF(ISERROR(VLOOKUP('Input Sheet'!$I63,TechNumber,2,FALSE)),"",VLOOKUP('Input Sheet'!$I63,TechNumber,2,FALSE)) ->  | L63: 16.57 | M63: 0.4 | N63: 2087 | O63: 13.5 | P63: 5.4 | T63: =IF(ISERROR(VLOOKUP('Input Sheet'!$S63,TechNumber,2,FALSE)),"",VLOOKUP('Input Sheet'!$S63,TechNumber,2,FALSE)) ->  | V63: 5.4 | W63: 1
B64: 59 | C64: 631074 | D64: 2014 | E64: TERRAIN | F64: 37902 | J64: =IF(ISERROR(VLOOKUP('Input Sheet'!$I64,TechNumber,2,FALSE)),"",VLOOKUP('Input Sheet'!$I64,TechNumber,2,FALSE)) ->  | L64: 26.52 | M64: 0.7 | N64: 2768 | O64: 12.5 | P64: 8.75 | T64: =IF(ISERROR(VLOOKUP('Input Sheet'!$S64,TechNumber,2,FALSE)),"",VLOOKUP('Input Sheet'!$S64,TechNumber,2,FALSE)) ->  | V64: 8.75 | W64: 0
B65: 60 | C65: 631077 | D65: 2010 | E65: IMPALA | F65: 88318 | G65: 76.05 | H65: 1 | I65: 61 | J65: 34 | K65: 34 | L65: 9.95 | M65: 0.4 | N65: 2781 | O65: 12.5 | P65: 5 | T65: =IF(ISERROR(VLOOKUP('Input Sheet'!$S65,TechNumber,2,FALSE)),"",VLOOKUP('Input Sheet'!$S65,TechNumber,2,FALSE)) ->  | V65: 39 | W65: 0
B66: 61 | C66: 631086 | D66: 2008 | E66: LUCERNE | F66: 94860 | J66: =IF(ISERROR(VLOOKUP('Input Sheet'!$I66,TechNumber,2,FALSE)),"",VLOOKUP('Input Sheet'!$I66,TechNumber,2,FALSE)) ->  | L66: 13.36 | M66: 0.4 | N66: 2781 | O66: 12.5 | P66: 5 | T66: =IF(ISERROR(VLOOKUP('Input Sheet'!$S66,TechNumber,2,FALSE)),"",VLOOKUP('Input Sheet'!$S66,TechNumber,2,FALSE)) ->  | V66: 5 | W66: 1
B67: 62 | C67: 632008 | D67: 2004 | E67: AZTEK | F67: 89096 | J67: =IF(ISERROR(VLOOKUP('Input Sheet'!$I67,TechNumber,2,FALSE)),"",VLOOKUP('Input Sheet'!$I67,TechNumber,2,FALSE)) ->  | L67: 32 | M67: 0.4 | N67: 2801 | O67: 12.5 | P67: 5 | T67: =IF(ISERROR(VLOOKUP('Input Sheet'!$S67,TechNumber,2,FALSE)),"",VLOOKUP('Input Sheet'!$S67,TechNumber,2,FALSE)) ->  | V67: 5 | W67: 1
B68: 63 | C68: 632012 | D68: 2016 | E68: TRAX | F68: 27653 | J68: =IF(ISERROR(VLOOKUP('Input Sheet'!$I68,TechNumber,2,FALSE)),"",VLOOKUP('Input Sheet'!$I68,TechNumber,2,FALSE)) ->  | L68: 26.52 | M68: 0.7 | N68: 2768 | O68: 12.5 | P68: 8.75 | T68: =IF(ISERROR(VLOOKUP('Input Sheet'!$S68,TechNumber,2,FALSE)),"",VLOOKUP('Input Sheet'!$S68,TechNumber,2,FALSE)) ->  | V68: 8.75 | W68: 0
B69: 64 | C69: 632013 | D69: 2005 | E69: VENTURE | F69: 66808 | J69: =IF(ISERROR(VLOOKUP('Input Sheet'!$I69,TechNumber,2,FALSE)),"",VLOOKUP('Input Sheet'!$I69,TechNumber,2,FALSE)) ->  | L69: 23.31 | M69: 0.7 | N69: 2781 | O69: 12.5 | P69: 8.75 | T69: =IF(ISERROR(VLOOKUP('Input Sheet'!$S69,TechNumber,2,FALSE)),"",VLOOKUP('Input Sheet'!$S69,TechNumber,2,FALSE)) ->  | V69: 8.75 | W69: 0
B70: 65 | C70: 632015 | D70: 2011 | E70: SIERRA | F70: 109691 | J70: =IF(ISERROR(VLOOKUP('Input Sheet'!$I70,TechNumber,2,FALSE)),"",VLOOKUP('Input Sheet'!$I70,TechNumber,2,FALSE)) ->  | K70: =IF(ISERROR(H70*J70),"",H70*J70) ->  | L70: 26.52 | M70: 0.7 | N70: 2860 | O70: 12.5 | P70: =IF(ISERROR(M70*O70)," ",M70*O70) -> 8.75 | T70: =IF(ISERROR(VLOOKUP('Input Sheet'!$S70,TechNumber,2,FALSE)),"",VLOOKUP('Input Sheet'!$S70,TechNumber,2,FALSE)) ->  | U70: =IF(ISERROR(R70*T70),"",R70*T70) ->  | V70: 8.75 | W70: 0
B71: 66 | C71: 632031 | D71: 2010 | E71: MARINER | F71: 182552 | J71: =IF(ISERROR(VLOOKUP('Input Sheet'!$I71,TechNumber,2,FALSE)),"",VLOOKUP('Input Sheet'!$I71,TechNumber,2,FALSE)) ->  | L71: 13.36 | M71: 0.4 | N71: 2860 | O71: 12.5 | P71: 5 | T71: =IF(ISERROR(VLOOKUP('Input Sheet'!$S71,TechNumber,2,FALSE)),"",VLOOKUP('Input Sheet'!$S71,TechNumber,2,FALSE)) ->  | V71: =SUM(U71,P71,K71) -> 5 | W71: 1
B72: 67 | C72: 632033 | D72: 2014 | E72: ENCORE | F72: 37603 | J72: =IF(ISERROR(VLOOKUP('Input Sheet'!$I72,TechNumber,2,FALSE)),"",VLOOKUP('Input Sheet'!$I72,TechNumber,2,FALSE)) ->  | L72: 16.57 | M72: 0.4 | N72: 2768 | O72: 12.5 | P72: 5 | T72: =IF(ISERROR(VLOOKUP('Input Sheet'!$S72,TechNumber,2,FALSE)),"",VLOOKUP('Input Sheet'!$S72,TechNumber,2,FALSE)) ->  | V72: 5 | W72: 1
B73: 68 | C73: 632036 | D73: 2016 | E73: FUSION | F73: 39941 | J73: =IF(ISERROR(VLOOKUP('Input Sheet'!$I73,TechNumber,2,FALSE)),"",VLOOKUP('Input Sheet'!$I73,TechNumber,2,FALSE)) ->  | L73: 29.95 | M73: 0.7 | N73: 2781 | O73: 12.5 | P73: 8.75 | T73: =IF(ISERROR(VLOOKUP('Input Sheet'!$S73,TechNumber,2,FALSE)),"",VLOOKUP('Input Sheet'!$S73,TechNumber,2,FALSE)) ->  | V73: 8.75 | W73: 0
B74: 69 | C74: 632041 | D74: 2011 | E74: TERRAIN | F74: 157488 | J74: =IF(ISERROR(VLOOKUP('Input Sheet'!$I74,TechNumber,2,FALSE)),"",VLOOKUP('Input Sheet'!$I74,TechNumber,2,FALSE)) ->  | L74: 26.52 | M74: 0.7 | N74: 2768 | O74: 12.5 | P74: 8.75 | T74: =IF(ISERROR(VLOOKUP('Input Sheet'!$S74,TechNumber,2,FALSE)),"",VLOOKUP('Input Sheet'!$S74,TechNumber,2,FALSE)) ->  | V74: 8.75 | W74: 0
B75: 70 | C75: 632043 | D75: 2011 | E75: SILVERADO | F75: 28240 | J75: =IF(ISERROR(VLOOKUP('Input Sheet'!$I75,TechNumber,2,FALSE)),"",VLOOKUP('Input Sheet'!$I75,TechNumber,2,FALSE)) ->  | L75: 16.57 | M75: 0.4 | N75: 2678 | O75: 12.5 | P75: 5 | T75: =IF(ISERROR(VLOOKUP('Input Sheet'!$S75,TechNumber,2,FALSE)),"",VLOOKUP('Input Sheet'!$S75,TechNumber,2,FALSE)) ->  | V75: 5 | W75: 1
B76: 71 | C76: 632045 | D76: 2009 | E76: ENCLAVE | F76: 74912 | G76: 89.95 | H76: 1.5 | I76: 1354 | J76: 26 | K76: 39 | Q76: 1345 | R76: 12.1 | S76: 1354 | T76: 26 | U76: 314.6 | V76: 353.6 | W76: 0
B77: 72 | C77: 632047 | D77: 2016 | E77: ACADIA | F77: 19352 | J77: =IF(ISERROR(VLOOKUP('Input Sheet'!$I77,TechNumber,2,FALSE)),"",VLOOKUP('Input Sheet'!$I77,TechNumber,2,FALSE)) ->  | L77: 26.52 | M77: 0.7 | N77: 2768 | O77: 12.5 | P77: 8.75 | T77: =IF(ISERROR(VLOOKUP('Input Sheet'!$S77,TechNumber,2,FALSE)),"",VLOOKUP('Input Sheet'!$S77,TechNumber,2,FALSE)) ->  | V77: 8.75 | W77: 0
B78: 73 | C78: 632048 | D78: 2011 | E78: TERRAIN | F78: 124023 | J78: =IF(ISERROR(VLOOKUP('Input Sheet'!$I78,TechNumber,2,FALSE)),"",VLOOKUP('Input Sheet'!$I78,TechNumber,2,FALSE)) ->  | L78: 40.57 | M78: 1 | N78: 2762 | O78: 12.5 | P78: 12.5 | Q78: 396.83 | R78: 3.3 | S78: 1354 | T78: 26 | U78: 85.8 | V78: 98.3 | W78: 0
B79: 74 | C79: 632049 | D79: 2015 | E79: YUKON | F79: 46046 | J79: =IF(ISERROR(VLOOKUP('Input Sheet'!$I79,TechNumber,2,FALSE)),"",VLOOKUP('Input Sheet'!$I79,TechNumber,2,FALSE)) ->  | L79: 24.57 | M79: 0.7 | N79: 2678 | O79: 12.5 | P79: 8.75 | T79: =IF(ISERROR(VLOOKUP('Input Sheet'!$S79,TechNumber,2,FALSE)),"",VLOOKUP('Input Sheet'!$S79,TechNumber,2,FALSE)) ->  | V79: 8.75 | W79: 0
B80: 75 | C80: 632052 | D80: 2015 | E80: SIERRA | F80: 96614 | G80: 112 | H80: 1.4 | I80: 1404 | J80: 28 | K80: 39.2 | O80: =IF(ISERROR(VLOOKUP('Input Sheet'!$N80,TechNumber,2,FALSE)),"",VLOOKUP('Input Sheet'!$N80,TechNumber,2,FALSE)) ->  | T80: =IF(ISERROR(VLOOKUP('Input Sheet'!$S80,TechNumber,2,FALSE)),"",VLOOKUP('Input Sheet'!$S80,TechNumber,2,FALSE)) ->  | V80: 39.2 | W80: 0
B81: 76 | C81: 632053 | D81: 2015 | E81: SIERRA | F81: 39783 | J81: =IF(ISERROR(VLOOKUP('Input Sheet'!$I81,TechNumber,2,FALSE)),"",VLOOKUP('Input Sheet'!$I81,TechNumber,2,FALSE)) ->  | L81: 26.52 | M81: 0.7 | N81: 2768 | O81: 12.5 | P81: 8.75 | T81: =IF(ISERROR(VLOOKUP('Input Sheet'!$S81,TechNumber,2,FALSE)),"",VLOOKUP('Input Sheet'!$S81,TechNumber,2,FALSE)) ->  | V81: 8.75 | W81: 0
B82: 77 | C82: 632054 | D82: 2013 | E82: TOWN&COUNTRY | F82: 34188 | J82: =IF(ISERROR(VLOOKUP('Input Sheet'!$I82,TechNumber,2,FALSE)),"",VLOOKUP('Input Sheet'!$I82,TechNumber,2,FALSE)) ->  | L82: 13.36 | M82: 0.4 | N82: 2860 | O82: 12.5 | P82: 5 | T82: =IF(ISERROR(VLOOKUP('Input Sheet'!$S82,TechNumber,2,FALSE)),"",VLOOKUP('Input Sheet'!$S82,TechNumber,2,FALSE)) ->  | V82: 5 | W82: 1
B83: 78 | C83: 632056 | D83: 2011 | E83: REGAL | F83: 94093 | J83: =IF(ISERROR(VLOOKUP('Input Sheet'!$I83,TechNumber,2,FALSE)),"",VLOOKUP('Input Sheet'!$I83,TechNumber,2,FALSE)) ->  | O83: =IF(ISERROR(VLOOKUP('Input Sheet'!$N83,TechNumber,2,FALSE)),"",VLOOKUP('Input Sheet'!$N83,TechNumber,2,FALSE)) ->  | Q83: 118 | R83: 1 | S83: 224 | T83: 30 | U83: 30 | V83: 30 | W83: 1
B84: 79 | C84: 632057 | D84: 2016 | E84: EQUINOX | F84: 25334 | J84: =IF(ISERROR(VLOOKUP('Input Sheet'!$I84,TechNumber,2,FALSE)),"",VLOOKUP('Input Sheet'!$I84,TechNumber,2,FALSE)) ->  | L84: 26.52 | M84: 0.7 | N84: 2678 | O84: 12.5 | P84: 8.75 | T84: =IF(ISERROR(VLOOKUP('Input Sheet'!$S84,TechNumber,2,FALSE)),"",VLOOKUP('Input Sheet'!$S84,TechNumber,2,FALSE)) ->  | V84: 8.75 | W84: 0
B85: 80 | C85: 632059 | D85: 2008 | E85: TRAILBLAZER | F85: 83900 | G85: 35 | H85: 0.5 | I85: 2816 | J85: 20 | K85: 10 | L85: 13.36 | M85: 0.4 | N85: 2768 | O85: 12.5 | P85: 5 | T85: =IF(ISERROR(VLOOKUP('Input Sheet'!$S85,TechNumber,2,FALSE)),"",VLOOKUP('Input Sheet'!$S85,TechNumber,2,FALSE)) ->  | V85: 15 | W85: 0
B86: 81 | C86: 632061 | D86: 2014 | E86: CRUZE | F86: 71437 | J86: =IF(ISERROR(VLOOKUP('Input Sheet'!$I86,TechNumber,2,FALSE)),"",VLOOKUP('Input Sheet'!$I86,TechNumber,2,FALSE)) ->  | L86: 16.57 | M86: 0.4 | N86: 2762 | O86: 12.5 | P86: 5 | T86: =IF(ISERROR(VLOOKUP('Input Sheet'!$S86,TechNumber,2,FALSE)),"",VLOOKUP('Input Sheet'!$S86,TechNumber,2,FALSE)) ->  | V86: 5 | W86: 0
B87: 82 | C87: 632063 | D87: 2014 | E87: ENCORE | F87: 34532 | J87: =IF(ISERROR(VLOOKUP('Input Sheet'!$I87,TechNumber,2,FALSE)),"",VLOOKUP('Input Sheet'!$I87,TechNumber,2,FALSE)) ->  | L87: 29.02 | M87: 0.8 | N87: 2768 | O87: 12.5 | P87: 10 | T87: =IF(ISERROR(VLOOKUP('Input Sheet'!$S87,TechNumber,2,FALSE)),"",VLOOKUP('Input Sheet'!$S87,TechNumber,2,FALSE)) ->  | V87: 10 | W87: 0
B88: 83 | C88: 632065 | D88: 2011 | E88: SIERRA | F88: 123962 | J88: =IF(ISERROR(VLOOKUP('Input Sheet'!$I88,TechNumber,2,FALSE)),"",VLOOKUP('Input Sheet'!$I88,TechNumber,2,FALSE)) ->  | L88: 26.52 | M88: 0.7 | N88: 2801 | O88: 12.5 | P88: 8.75 | T88: =IF(ISERROR(VLOOKUP('Input Sheet'!$S88,TechNumber,2,FALSE)),"",VLOOKUP('Input Sheet'!$S88,TechNumber,2,FALSE)) ->  | V88: 8.75 | W88: 0
B89: 84 | C89: 632080 | D89: 2017 | E89: TERRAIN | F89: 7048 | J89: =IF(ISERROR(VLOOKUP('Input Sheet'!$I89,TechNumber,2,FALSE)),"",VLOOKUP('Input Sheet'!$I89,TechNumber,2,FALSE)) ->  | L89: 20 | M89: 0.4 | N89: 2762 | O89: 12.5 | P89: 5 | T89: =IF(ISERROR(VLOOKUP('Input Sheet'!$S89,TechNumber,2,FALSE)),"",VLOOKUP('Input Sheet'!$S89,TechNumber,2,FALSE)) ->  | V89: 5 | W89: 0
B90: 85 | C90: 632083 | D90: 2014 | E90: EQUINOX | F90: 19572 | J90: =IF(ISERROR(VLOOKUP('Input Sheet'!$I90,TechNumber,2,FALSE)),"",VLOOKUP('Input Sheet'!$I90,TechNumber,2,FALSE)) ->  | L90: 16.57 | M90: 0.4 | N90: 2801 | O90: 12.5 | P90: 5 | T90: =IF(ISERROR(VLOOKUP('Input Sheet'!$S90,TechNumber,2,FALSE)),"",VLOOKUP('Input Sheet'!$S90,TechNumber,2,FALSE)) ->  | V90: 5 | W90: 1
B91: 86 | C91: 632085 | D91: 2015 | E91: YUKON | F91: 48065 | J91: =IF(ISERROR(VLOOKUP('Input Sheet'!$I91,TechNumber,2,FALSE)),"",VLOOKUP('Input Sheet'!$I91,TechNumber,2,FALSE)) ->  | L91: 26.52 | M91: 0.7 | N91: 2860 | O91: 12.5 | P91: 8.75 | Q91: 177 | R91: 1.5 | S91: 1354 | T91: 26 | U91: 39 | V91: 47.75 | W91: 0
B92: 87 | C92: 632088 | D92: 2015 | E92: TERRAIN | F92: 50363 | J92: =IF(ISERROR(VLOOKUP('Input Sheet'!$I92,TechNumber,2,FALSE)),"",VLOOKUP('Input Sheet'!$I92,TechNumber,2,FALSE)) ->  | L92: 16.57 | M92: 0.4 | N92: 1404 | O92: 24 | P92: 9.6 | T92: =IF(ISERROR(VLOOKUP('Input Sheet'!$S92,TechNumber,2,FALSE)),"",VLOOKUP('Input Sheet'!$S92,TechNumber,2,FALSE)) ->  | V92: 9.6 | W92: 1
B93: 88 | C93: 632092 | D93: 2011 | E93: TERRAIN | F93: 74584 | J93: =IF(ISERROR(VLOOKUP('Input Sheet'!$I93,TechNumber,2,FALSE)),"",VLOOKUP('Input Sheet'!$I93,TechNumber,2,FALSE)) ->  | L93: 16.57 | M93: 0.4 | N93: 2768 | O93: 12.5 | P93: 5 | T93: =IF(ISERROR(VLOOKUP('Input Sheet'!$S93,TechNumber,2,FALSE)),"",VLOOKUP('Input Sheet'!$S93,TechNumber,2,FALSE)) ->  | V93: 5 | W93: 1
B94: 89 | C94: 632094 | D94: 2015 | E94: ACADIA | F94: 33374 | G94: 92 | H94: 1 | I94: 131 | J94: 92 | K94: 92 | O94: =IF(ISERROR(VLOOKUP('Input Sheet'!$N94,TechNumber,2,FALSE)),"",VLOOKUP('Input Sheet'!$N94,TechNumber,2,FALSE)) ->  | T94: =IF(ISERROR(VLOOKUP('Input Sheet'!$S94,TechNumber,2,FALSE)),"",VLOOKUP('Input Sheet'!$S94,TechNumber,2,FALSE)) ->  | V94: 92 | W94: 0
B95: 90 | C95: 633002 | D95: 2017 | E95: ENCLAVE | F95: 8488 | J95: =IF(ISERROR(VLOOKUP('Input Sheet'!$I95,TechNumber,2,FALSE)),"",VLOOKUP('Input Sheet'!$I95,TechNumber,2,FALSE)) ->  | L95: 12 | M95: 0.3 | N95: 2087 | O95: 12.5 | P95: 3.75 | T95: =IF(ISERROR(VLOOKUP('Input Sheet'!$S95,TechNumber,2,FALSE)),"",VLOOKUP('Input Sheet'!$S95,TechNumber,2,FALSE)) ->  | V95: 3.75 | W95: 1
B96: 91 | C96: 633004 | D96: 2009 | E96: VUE | F96: 110386 | J96: =IF(ISERROR(VLOOKUP('Input Sheet'!$I96,TechNumber,2,FALSE)),"",VLOOKUP('Input Sheet'!$I96,TechNumber,2,FALSE)) ->  | L96: 13.36 | M96: 0.4 | N96: 2087 | O96: 13.5 | P96: 5.4 | T96: =IF(ISERROR(VLOOKUP('Input Sheet'!$S96,TechNumber,2,FALSE)),"",VLOOKUP('Input Sheet'!$S96,TechNumber,2,FALSE)) ->  | V96: 5.4 | W96: 0
B97: 92 | C97: 633005 | D97: 2009 | E97: VIBE | F97: 85066 | J97: =IF(ISERROR(VLOOKUP('Input Sheet'!$I97,TechNumber,2,FALSE)),"",VLOOKUP('Input Sheet'!$I97,TechNumber,2,FALSE)) ->  | L97: 58.31 | M97: 1.2 | N97: 2781 | O97: 12.5 | P97: 15 | T97: =IF(ISERROR(VLOOKUP('Input Sheet'!$S97,TechNumber,2,FALSE)),"",VLOOKUP('Input Sheet'!$S97,TechNumber,2,FALSE)) ->  | V97: 15 | W97: 0
B98: 93 | C98: 633006 | D98: 2008 | E98: ENVOY | F98: 135506 | J98: =IF(ISERROR(VLOOKUP('Input Sheet'!$I98,TechNumber,2,FALSE)),"",VLOOKUP('Input Sheet'!$I98,TechNumber,2,FALSE)) ->  | L98: 23.31 | M98: 0.7 | N98: 2087 | O98: 13.5 | P98: 9.45 | T98: =IF(ISERROR(VLOOKUP('Input Sheet'!$S98,TechNumber,2,FALSE)),"",VLOOKUP('Input Sheet'!$S98,TechNumber,2,FALSE)) ->  | V98: 9.45 | W98: 0
B99: 94 | C99: 633019 | D99: 2015 | E99: ENCLAVE | F99: 39354 | J99: =IF(ISERROR(VLOOKUP('Input Sheet'!$I99,TechNumber,2,FALSE)),"",VLOOKUP('Input Sheet'!$I99,TechNumber,2,FALSE)) ->  | L99: 16.57 | M99: 0.4 | N99: 2781 | O99: 12.5 | P99: 5 | T99: =IF(ISERROR(VLOOKUP('Input Sheet'!$S99,TechNumber,2,FALSE)),"",VLOOKUP('Input Sheet'!$S99,TechNumber,2,FALSE)) ->  | V99: 5 | W99: 1
B100: 95 | C100: 633021 | D100: 2017 | E100: TAHOE | F100: 7329 | J100: =IF(ISERROR(VLOOKUP('Input Sheet'!$I100,TechNumber,2,FALSE)),"",VLOOKUP('Input Sheet'!$I100,TechNumber,2,FALSE)) ->  | L100: 26.52 | M100: 0.7 | N100: 2762 | O100: 12.5 | P100: 8.75 | T100: =IF(ISERROR(VLOOKUP('Input Sheet'!$S100,TechNumber,2,FALSE)),"",VLOOKUP('Input Sheet'!$S100,TechNumber,2,FALSE)) ->  | V100: 8.75 | W100: 0
B101: 96 | C101: 633022 | D101: 2016 | E101: ENCORE | F101: 16176 | J101: =IF(ISERROR(VLOOKUP('Input Sheet'!$I101,TechNumber,2,FALSE)),"",VLOOKUP('Input Sheet'!$I101,TechNumber,2,FALSE)) ->  | L101: 26.52 | M101: 0.7 | N101: 2678 | O101: 12.5 | P101: 8.75 | T101: =IF(ISERROR(VLOOKUP('Input Sheet'!$S101,TechNumber,2,FALSE)),"",VLOOKUP('Input Sheet'!$S101,TechNumber,2,FALSE)) ->  | V101: 8.75 | W101: 0
B102: 97 | C102: 633024 | D102: 2013 | E102: LACROSSE | F102: 80933 | J102: =IF(ISERROR(VLOOKUP('Input Sheet'!$I102,TechNumber,2,FALSE)),"",VLOOKUP('Input Sheet'!$I102,TechNumber,2,FALSE)) ->  | L102: 46.52 | M102: 1 | N102: 2762 | O102: 12.5 | P102: 12.5 | Q102: 1852.6 | R102: 15.7 | S102: 61 | T102: 34 | U102: 533.8 | V102: 546.3 | W102: 0
B103: 98 | C103: 633028 | D103: 2016 | E103: SIERRA | F103: 20646 | J103: =IF(ISERROR(VLOOKUP('Input Sheet'!$I103,TechNumber,2,FALSE)),"",VLOOKUP('Input Sheet'!$I103,TechNumber,2,FALSE)) ->  | L103: 26.52 | M103: 0.7 | N103: 2768 | O103: 12.5 | P103: 8.75 | T103: =IF(ISERROR(VLOOKUP('Input Sheet'!$S103,TechNumber,2,FALSE)),"",VLOOKUP('Input Sheet'!$S103,TechNumber,2,FALSE)) ->  | V103: 8.75 | W103: 0
B104: 99 | C104: 633029 | D104: 2017 | E104: YUKON | F104: 13642 | J104: =IF(ISERROR(VLOOKUP('Input Sheet'!$I104,TechNumber,2,FALSE)),"",VLOOKUP('Input Sheet'!$I104,TechNumber,2,FALSE)) ->  | L104: 24.57 | M104: 0.7 | N104: 2781 | O104: 12.5 | P104: 8.75 | T104: =IF(ISERROR(VLOOKUP('Input Sheet'!$S104,TechNumber,2,FALSE)),"",VLOOKUP('Input Sheet'!$S104,TechNumber,2,FALSE)) ->  | V104: 8.75 | W104: 0
B105: 100 | C105: 633035 | D105: 2004 | E105: IMPALA | F105: 27046 | J105: =IF(ISERROR(VLOOKUP('Input Sheet'!$I105,TechNumber,2,FALSE)),"",VLOOKUP('Input Sheet'!$I105,TechNumber,2,FALSE)) ->  | K105: =IF(ISERROR(H105*J105),"",H105*J105) ->  | O105: =IF(ISERROR(VLOOKUP('Input Sheet'!$N105,TechNumber,2,FALSE)),"",VLOOKUP('Input Sheet'!$N105,TechNumber,2,FALSE)) ->  | P105: =IF(ISERROR(M105*O105)," ",M105*O105) ->  | Q105: 236 | R105: 2 | S105: 2331 | T105: 19 | U105: =IF(ISERROR(R105*T105),"",R105*T105) -> 38 | V105: 38 | W105: 1
E106: Totals | F106: Totals | G106: =SUM(G6:G105) -> 2729.64 | H106: =SUM(H6:H105) -> 30.2 | K106: =SUM(K6:K105) -> 747.5 | L106: =SUM(L6:L105) -> 2368.1 | M106: =SUM(M6:M105) -> 53.3 | P106: =SUM(P6:P105) -> 694.46 | Q106: 8078.06 | R106: 67.7 | U106: 1873.7 | V106: 3315.66 | W106: =COUNTIF(W5:W105,1) -> 33
E107: Number of RO's in Sample | F107: 100 | G107: Competative Labor | L107: Maintenance Labor | Q107: Repair Labor | V107: Total Cost of Labor | W107: One Item Repair Order
G108: Labor Sales | H108: Flat Rate Hours | I108: Technican Number | J108: Pay Per FRH | K108: Labor Cost | L108: Labor Sales | M108: Flat Rate Hours | N108: Technican Number | O108: Pay Per FRH | P108: Labor Cost | Q108: Labor Sales | R108: Flat Rate Hours | S108: Technican Number | T108: Pay Per FRH | U108: Labor Cost

Sheet RO Report 1-50
A1: Repair Order Analysis
E2: Competitive Labor | J2: Maintenance Labor | O2: Repair Labor
A3: Dealership | T3: Total Cost of Labor | U3: One Item Repair Order
A4: RO Number | E4: Labor Sales | F4: Flat Rate Hours | G4: Technician Number | H4: Pay Per FRH | I4: Labor Cost | J4: Labor Sales | K4: Flat Rate Hours | L4: Technician Number | M4: Pay Per FRH | N4: Labor Cost | O4: Labor Sales | P4: Flat Rate Hours | Q4: Technician Number | R4: Pay Per FRH | S4: Labor Cost
B5: Year | C5: Model | D5: Mileage
A6: ='Input Sheet'!C6 -> 630003 | B6: ='Input Sheet'!D6 -> 2013 | C6: ='Input Sheet'!E6 -> SUBURBAN | D6: ='Input Sheet'!F6 -> 66161 | E6: ='Input Sheet'!G6 -> 0 | F6: ='Input Sheet'!H6 -> 0 | G6: ='Input Sheet'!I6 -> 0 | H6: ='Input Sheet'!J6 -> 0 | I6: =F6*H6 -> 0 | J6: ='Input Sheet'!L6 -> 90.52 | K6: ='Input Sheet'!M6 -> 1.5 | L6: ='Input Sheet'!I6 -> 0 | M6: ='Input Sheet'!J6 -> 0 | N6: =K6*M6 -> 0 | O6: ='Input Sheet'!Q6 -> 0 | P6: ='Input Sheet'!R6 -> 0 | Q6: ='Input Sheet'!S6 -> 0 | R6: ='Input Sheet'!T6 ->  | S6: =P6*R6 ->  | T6: ='Input Sheet'!V6 -> 18.75 | U6: ='Input Sheet'!W6 -> 0
A7: ='Input Sheet'!C7 -> 630006 | B7: ='Input Sheet'!D7 -> 2015 | C7: ='Input Sheet'!E7 -> SIERRA | D7: ='Input Sheet'!F7 -> 32182 | E7: ='Input Sheet'!G7 ->  | F7: ='Input Sheet'!H7 -> 0 | G7: ='Input Sheet'!I7 -> 0 | H7: ='Input Sheet'!J7 ->  | I7: =F7*H7 ->  | J7: ='Input Sheet'!L7 -> 36.52 | K7: ='Input Sheet'!M7 -> 0.9 | L7: ='Input Sheet'!I7 -> 0 | M7: ='Input Sheet'!J7 ->  | N7: =K7*M7 ->  | O7: ='Input Sheet'!Q7 ->  | P7: ='Input Sheet'!R7 ->  | Q7: ='Input Sheet'!S7 ->  | R7: ='Input Sheet'!T7 ->  | S7: =P7*R7 ->  | T7: ='Input Sheet'!V7 -> 11.25 | U7: ='Input Sheet'!W7 -> 0
A8: ='Input Sheet'!C8 -> 630009 | B8: ='Input Sheet'!D8 -> 2010 | C8: ='Input Sheet'!E8 -> WRANGLER | D8: ='Input Sheet'!F8 -> 147618 | E8: ='Input Sheet'!G8 -> 0 | F8: ='Input Sheet'!H8 -> 0 | G8: ='Input Sheet'!I8 -> 0 | H8: ='Input Sheet'!J8 ->  | J8: ='Input Sheet'!L8 -> 66.47 | K8: ='Input Sheet'!M8 -> 1.2 | L8: ='Input Sheet'!I8 -> 0 | M8: ='Input Sheet'!J8 ->  | O8: ='Input Sheet'!Q8 -> 0 | P8: ='Input Sheet'!R8 -> 0 | Q8: ='Input Sheet'!S8 -> 0 | R8: ='Input Sheet'!T8 ->  | T8: ='Input Sheet'!V8 -> 15 | U8: ='Input Sheet'!W8 -> 0
A9: ='Input Sheet'!C9 -> 630010 | B9: ='Input Sheet'!D9 -> 2016 | C9: ='Input Sheet'!E9 -> TERRAIN | D9: ='Input Sheet'!F9 -> 26550 | E9: ='Input Sheet'!G9 -> 0 | F9: ='Input Sheet'!H9 -> 0 | G9: ='Input Sheet'!I9 -> 0 | H9: ='Input Sheet'!J9 ->  | J9: ='Input Sheet'!L9 -> 26.52 | K9: ='Input Sheet'!M9 -> 0.7 | L9: ='Input Sheet'!I9 -> 0 | M9: ='Input Sheet'!J9 ->  | O9: ='Input Sheet'!Q9 -> 0 | P9: ='Input Sheet'!R9 -> 0 | Q9: ='Input Sheet'!S9 -> 0 | R9: ='Input Sheet'!T9 ->  | T9: ='Input Sheet'!V9 -> 8.75 | U9: ='Input Sheet'!W9 -> 0
A10: ='Input Sheet'!C10 -> 630013 | B10: ='Input Sheet'!D10 -> 2012 | C10: ='Input Sheet'!E10 -> SIENNA | D10: ='Input Sheet'!F10 -> 52281 | E10: ='Input Sheet'!G10 -> 0 | F10: ='Input Sheet'!H10 -> 0 | G10: ='Input Sheet'!I10 -> 0 | H10: ='Input Sheet'!J10 ->  | J10: ='Input Sheet'!L10 -> 24.95 | K10: ='Input Sheet'!M10 -> 0.7 | L10: ='Input Sheet'!I10 -> 0 | M10: ='Input Sheet'!J10 ->  | O10: ='Input Sheet'!Q10 -> 0 | P10: ='Input Sheet'!R10 -> 0 | Q10: ='Input Sheet'!S10 -> 0 | R10: ='Input Sheet'!T10 ->  | T10: ='Input Sheet'!V10 -> 9.45 | U10: ='Input Sheet'!W10 -> 0
A11: ='Input Sheet'!C11 -> 630016 | B11: ='Input Sheet'!D11 -> 2013 | C11: ='Input Sheet'!E11 -> YUKON | D11: ='Input Sheet'!F11 -> 92099 | E11: ='Input Sheet'!G11 -> 1078 | F11: ='Input Sheet'!H11 -> 9.6 | G11: ='Input Sheet'!I11 -> 2331 | H11: ='Input Sheet'!J11 -> 19 | I11: 182.4 | J11: ='Input Sheet'!L11 -> 0 | K11: ='Input Sheet'!M11 -> 0 | L11: ='Input Sheet'!I11 -> 2331 | M11: ='Input Sheet'!J11 -> 19 | N11: 0 | O11: ='Input Sheet'!Q11 -> 183.2 | P11: ='Input Sheet'!R11 -> 1.5 | Q11: ='Input Sheet'!S11 -> 1354 | R11: ='Input Sheet'!T11 -> 26 | S11: 39 | T11: ='Input Sheet'!V11 -> 221.4 | U11: ='Input Sheet'!W11 -> 0
A12: ='Input Sheet'!C12 -> 630018 | B12: ='Input Sheet'!D12 -> 2016 | C12: ='Input Sheet'!E12 -> TERRAIN | D12: ='Input Sheet'!F12 -> 19222 | E12: ='Input Sheet'!G12 -> 0 | F12: ='Input Sheet'!H12 -> 0 | G12: ='Input Sheet'!I12 -> 0 | H12: ='Input Sheet'!J12 ->  | J12: ='Input Sheet'!L12 -> 26.52 | K12: ='Input Sheet'!M12 -> 0.7 | L12: ='Input Sheet'!I12 -> 0 | M12: ='Input Sheet'!J12 ->  | O12: ='Input Sheet'!Q12 -> 0 | P12: ='Input Sheet'!R12 -> 0 | Q12: ='Input Sheet'!S12 -> 0 | R12: ='Input Sheet'!T12 ->  | T12: ='Input Sheet'!V12 -> 8.75 | U12: ='Input Sheet'!W12 -> 0
A13: ='Input Sheet'!C13 -> 630024 | B13: ='Input Sheet'!D13 -> 2017 | C13: ='Input Sheet'!E13 -> ENCLAVE | D13: ='Input Sheet'!F13 -> 7620 | E13: ='Input Sheet'!G13 -> 0 | F13: ='Input Sheet'!H13 -> 0 | G13: ='Input Sheet'!I13 -> 0 | H13: ='Input Sheet'!J13 ->  | J13: ='Input Sheet'!L13 -> 16.57 | K13: ='Input Sheet'!M13 -> 0.4 | L13: ='Input Sheet'!I13 -> 0 | M13: ='Input Sheet'!J13 ->  | O13: ='Input Sheet'!Q13 -> 0 | P13: ='Input Sheet'!R13 -> 0 | Q13: ='Input Sheet'!S13 -> 0 | R13: ='Input Sheet'!T13 ->  | T13: ='Input Sheet'!V13 -> 5 | U13: ='Input Sheet'!W13 -> 1
A14: ='Input Sheet'!C14 -> 630025 | B14: ='Input Sheet'!D14 -> 2013 | C14: ='Input Sheet'!E14 -> MALIBU | D14: ='Input Sheet'!F14 -> 81249 | E14: ='Input Sheet'!G14 -> 125 | F14: ='Input Sheet'!H14 -> 1.5 | G14: ='Input Sheet'!I14 -> 2830 | H14: ='Input Sheet'!J14 -> 24 | I14: 36 | J14: ='Input Sheet'!L14 -> 0 | K14: ='Input Sheet'!M14 -> 0 | L14: ='Input Sheet'!I14 -> 2830 | M14: ='Input Sheet'!J14 -> 24 | N14: 0 | O14: ='Input Sheet'!Q14 -> 0 | P14: ='Input Sheet'!R14 -> 0 | Q14: ='Input Sheet'!S14 -> 0 | R14: ='Input Sheet'!T14 ->  | T14: ='Input Sheet'!V14 -> 36 | U14: ='Input Sheet'!W14 -> 0
A15: ='Input Sheet'!C15 -> 630026 | B15: ='Input Sheet'!D15 -> 2008 | C15: ='Input Sheet'!E15 -> YUKON | D15: ='Input Sheet'!F15 -> 215634 | E15: ='Input Sheet'!G15 -> 0 | F15: ='Input Sheet'!H15 -> 0 | G15: ='Input Sheet'!I15 -> 0 | H15: ='Input Sheet'!J15 ->  | J15: ='Input Sheet'!L15 -> 56.52 | K15: ='Input Sheet'!M15 -> 1.2 | L15: ='Input Sheet'!I15 -> 0 | M15: ='Input Sheet'!J15 ->  | O15: ='Input Sheet'!Q15 -> 0 | P15: ='Input Sheet'!R15 -> 0 | Q15: ='Input Sheet'!S15 -> 0 | R15: ='Input Sheet'!T15 ->  | T15: ='Input Sheet'!V15 -> 15 | U15: ='Input Sheet'!W15 -> 0
A16: ='Input Sheet'!C16 -> 630029 | B16: ='Input Sheet'!D16 -> 2006 | C16: ='Input Sheet'!E16 -> GTO | D16: ='Input Sheet'!F16 -> 102288 | E16: ='Input Sheet'!G16 -> 0 | F16: ='Input Sheet'!H16 -> 0 | G16: ='Input Sheet'!I16 -> 0 | H16: ='Input Sheet'!J16 ->  | J16: ='Input Sheet'!L16 -> 16.57 | K16: ='Input Sheet'!M16 -> 0.4 | L16: ='Input Sheet'!I16 -> 0 | M16: ='Input Sheet'!J16 ->  | O16: ='Input Sheet'!Q16 -> 0 | P16: ='Input Sheet'!R16 -> 0 | Q16: ='Input Sheet'!S16 -> 0 | R16: ='Input Sheet'!T16 ->  | T16: ='Input Sheet'!V16 -> 5 | U16: ='Input Sheet'!W16 -> 1
A17: ='Input Sheet'!C17 -> 630036 | B17: ='Input Sheet'!D17 -> 2015 | C17: ='Input Sheet'!E17 -> SIERRA | D17: ='Input Sheet'!F17 -> 48110 | E17: ='Input Sheet'!G17 -> 0 | F17: ='Input Sheet'!H17 -> 0 | G17: ='Input Sheet'!I17 -> 0 | H17: ='Input Sheet'!J17 ->  | J17: ='Input Sheet'!L17 -> 0 | K17: ='Input Sheet'!M17 -> 0 | L17: ='Input Sheet'!I17 -> 0 | M17: ='Input Sheet'!J17 ->  | O17: ='Input Sheet'!Q17 -> 236 | P17: ='Input Sheet'!R17 -> 2 | Q17: ='Input Sheet'!S17 -> 131 | R17: ='Input Sheet'!T17 -> 22 | S17: 44 | T17: ='Input Sheet'!V17 -> 44 | U17: ='Input Sheet'!W17 -> 0
A18: ='Input Sheet'!C18 -> 630037 | B18: ='Input Sheet'!D18 -> 2016 | C18: ='Input Sheet'!E18 -> REGAL | D18: ='Input Sheet'!F18 -> 23894 | E18: ='Input Sheet'!G18 -> 0 | F18: ='Input Sheet'!H18 -> 0 | G18: ='Input Sheet'!I18 -> 0 | H18: ='Input Sheet'!J18 ->  | J18: ='Input Sheet'!L18 -> 30 | K18: ='Input Sheet'!M18 -> 0.6 | L18: ='Input Sheet'!I18 -> 0 | M18: ='Input Sheet'!J18 ->  | O18: ='Input Sheet'!Q18 -> 0 | P18: ='Input Sheet'!R18 -> 0 | Q18: ='Input Sheet'!S18 -> 0 | R18: ='Input Sheet'!T18 ->  | T18: ='Input Sheet'!V18 -> 7.5 | U18: ='Input Sheet'!W18 -> 1
A19: ='Input Sheet'!C19 -> 630039 | B19: ='Input Sheet'!D19 -> 2016 | C19: ='Input Sheet'!E19 -> SIERRA | D19: ='Input Sheet'!F19 -> 30149 | E19: ='Input Sheet'!G19 -> 0 | F19: ='Input Sheet'!H19 -> 0 | G19: ='Input Sheet'!I19 -> 0 | H19: ='Input Sheet'!J19 ->  | J19: ='Input Sheet'!L19 -> 200 | K19: ='Input Sheet'!M19 -> 0.7 | L19: ='Input Sheet'!I19 -> 0 | M19: ='Input Sheet'!J19 ->  | O19: ='Input Sheet'!Q19 -> 0 | P19: ='Input Sheet'!R19 -> 0 | Q19: ='Input Sheet'!S19 -> 0 | R19: ='Input Sheet'!T19 ->  | T19: ='Input Sheet'!V19 -> 8.75 | U19: ='Input Sheet'!W19 -> 0
A20: ='Input Sheet'!C20 -> 630040 | B20: ='Input Sheet'!D20 -> 2016 | C20: ='Input Sheet'!E20 -> TERRAIN | D20: ='Input Sheet'!F20 -> 27399 | E20: ='Input Sheet'!G20 -> 0 | F20: ='Input Sheet'!H20 -> 0 | G20: ='Input Sheet'!I20 -> 0 | H20: ='Input Sheet'!J20 ->  | J20: ='Input Sheet'!L20 -> 16.57 | K20: ='Input Sheet'!M20 -> 0.4 | L20: ='Input Sheet'!I20 -> 0 | M20: ='Input Sheet'!J20 ->  | O20: ='Input Sheet'!Q20 -> 0 | P20: ='Input Sheet'!R20 -> 0 | Q20: ='Input Sheet'!S20 -> 0 | R20: ='Input Sheet'!T20 ->  | T20: ='Input Sheet'!V20 -> 5.4 | U20: ='Input Sheet'!W20 -> 1
A21: ='Input Sheet'!C21 -> 630043 | B21: ='Input Sheet'!D21 -> 2011 | C21: ='Input Sheet'!E21 -> SIERRA | D21: ='Input Sheet'!F21 -> 168435 | E21: ='Input Sheet'!G21 -> 0 | F21: ='Input Sheet'!H21 -> 0 | G21: ='Input Sheet'!I21 -> 0 | H21: ='Input Sheet'!J21 ->  | J21: ='Input Sheet'!L21 -> 26.52 | K21: ='Input Sheet'!M21 -> 0.7 | L21: ='Input Sheet'!I21 -> 0 | M21: ='Input Sheet'!J21 ->  | O21: ='Input Sheet'!Q21 -> 0 | P21: ='Input Sheet'!R21 -> 0 | Q21: ='Input Sheet'!S21 -> 0 | R21: ='Input Sheet'!T21 ->  | T21: ='Input Sheet'!V21 -> 8.75 | U21: ='Input Sheet'!W21 -> 0
A22: ='Input Sheet'!C22 -> 630045 | B22: ='Input Sheet'!D22 -> 2006 | C22: ='Input Sheet'!E22 -> CORVETTE | D22: ='Input Sheet'!F22 -> 42596 | E22: ='Input Sheet'!G22 -> 0 | F22: ='Input Sheet'!H22 -> 0 | G22: ='Input Sheet'!I22 -> 0 | H22: ='Input Sheet'!J22 ->  | J22: ='Input Sheet'!L22 -> 0 | K22: ='Input Sheet'!M22 -> 0 | L22: ='Input Sheet'!I22 -> 0 | M22: ='Input Sheet'!J22 ->  | O22: ='Input Sheet'!Q22 -> 590 | P22: ='Input Sheet'!R22 -> 5 | Q22: ='Input Sheet'!S22 -> 131 | R22: ='Input Sheet'!T22 -> 22 | S22: 110 | T22: ='Input Sheet'!V22 -> 110 | U22: ='Input Sheet'!W22 -> 0
A23: ='Input Sheet'!C23 -> 630048 | B23: ='Input Sheet'!D23 -> 2015 | C23: ='Input Sheet'!E23 -> SILVERADO | D23: ='Input Sheet'!F23 -> 49027 | E23: ='Input Sheet'!G23 -> 0 | F23: ='Input Sheet'!H23 -> 0 | G23: ='Input Sheet'!I23 -> 0 | H23: ='Input Sheet'!J23 ->  | J23: ='Input Sheet'!L23 -> 16.57 | K23: ='Input Sheet'!M23 -> 0.4 | L23: ='Input Sheet'!I23 -> 0 | M23: ='Input Sheet'!J23 ->  | O23: ='Input Sheet'!Q23 -> 0 | P23: ='Input Sheet'!R23 -> 0 | Q23: ='Input Sheet'!S23 -> 0 | R23: ='Input Sheet'!T23 ->  | T23: ='Input Sheet'!V23 -> 5 | U23: ='Input Sheet'!W23 -> 1
A24: ='Input Sheet'!C24 -> 630049 | B24: ='Input Sheet'!D24 -> 2016 | C24: ='Input Sheet'!E24 -> TERRAIN | D24: ='Input Sheet'!F24 -> 17267 | E24: ='Input Sheet'!G24 -> 0 | F24: ='Input Sheet'!H24 -> 0 | G24: ='Input Sheet'!I24 -> 0 | H24: ='Input Sheet'!J24 ->  | J24: ='Input Sheet'!L24 -> 26.52 | K24: ='Input Sheet'!M24 -> 0.7 | L24: ='Input Sheet'!I24 -> 0 | M24: ='Input Sheet'!J24 ->  | O24: ='Input Sheet'!Q24 -> 0 | P24: ='Input Sheet'!R24 -> 0 | Q24: ='Input Sheet'!S24 -> 0 | R24: ='Input Sheet'!T24 ->  | T24: ='Input Sheet'!V24 -> 8.75 | U24: ='Input Sheet'!W24 -> 0
A25: ='Input Sheet'!C25 -> 630050 | B25: ='Input Sheet'!D25 -> 2015 | C25: ='Input Sheet'!E25 -> SIERRA | D25: ='Input Sheet'!F25 -> 27094 | E25: ='Input Sheet'!G25 -> 0 | F25: ='Input Sheet'!H25 -> 0 | G25: ='Input Sheet'!I25 -> 0 | H25: ='Input Sheet'!J25 ->  | J25: ='Input Sheet'!L25 -> 14.62 | K25: ='Input Sheet'!M25 -> 0.4 | L25: ='Input Sheet'!I25 -> 0 | M25: ='Input Sheet'!J25 ->  | O25: ='Input Sheet'!Q25 -> 0 | P25: ='Input Sheet'!R25 -> 0 | Q25: ='Input Sheet'!S25 -> 0 | R25: ='Input Sheet'!T25 ->  | T25: ='Input Sheet'!V25 -> 5 | U25: ='Input Sheet'!W25 -> 1
A26: ='Input Sheet'!C26 -> 630051 | B26: ='Input Sheet'!D26 -> 2016 | C26: ='Input Sheet'!E26 -> TERRAIN | D26: ='Input Sheet'!F26 -> 20260 | E26: ='Input Sheet'!G26 -> 0 | F26: ='Input Sheet'!H26 -> 0 | G26: ='Input Sheet'!I26 -> 0 | H26: ='Input Sheet'!J26 ->  | J26: ='Input Sheet'!L26 -> 53.52 | K26: ='Input Sheet'!M26 -> 1.2 | L26: ='Input Sheet'!I26 -> 0 | M26: ='Input Sheet'!J26 ->  | O26: ='Input Sheet'!Q26 -> 0 | P26: ='Input Sheet'!R26 -> 0 | Q26: ='Input Sheet'!S26 -> 0 | R26: ='Input Sheet'!T26 ->  | T26: ='Input Sheet'!V26 -> 15.36 | U26: ='Input Sheet'!W26 -> 0
A27: ='Input Sheet'!C27 -> 630052 | B27: ='Input Sheet'!D27 -> 2015 | C27: ='Input Sheet'!E27 -> TERRAIN | D27: ='Input Sheet'!F27 -> 16712 | E27: ='Input Sheet'!G27 -> 0 | F27: ='Input Sheet'!H27 -> 0 | G27: ='Input Sheet'!I27 -> 0 | H27: ='Input Sheet'!J27 ->  | J27: ='Input Sheet'!L27 -> 26.52 | K27: ='Input Sheet'!M27 -> 0.7 | L27: ='Input Sheet'!I27 -> 0 | M27: ='Input Sheet'!J27 ->  | O27: ='Input Sheet'!Q27 -> 0 | P27: ='Input Sheet'!R27 -> 0 | Q27: ='Input Sheet'!S27 -> 0 | R27: ='Input Sheet'!T27 ->  | T27: ='Input Sheet'!V27 -> 8.75 | U27: ='Input Sheet'!W27 -> 0
A28: ='Input Sheet'!C28 -> 630056 | B28: ='Input Sheet'!D28 -> 2015 | C28: ='Input Sheet'!E28 -> YUKON | D28: ='Input Sheet'!F28 -> 29079 | E28: ='Input Sheet'!G28 -> 80 | F28: ='Input Sheet'!H28 -> 1 | G28: ='Input Sheet'!I28 -> 131 | H28: ='Input Sheet'!J28 -> 22 | I28: 22 | J28: ='Input Sheet'!L28 -> 0 | K28: ='Input Sheet'!M28 -> 0 | L28: ='Input Sheet'!I28 -> 131 | M28: ='Input Sheet'!J28 -> 22 | N28: 0 | O28: ='Input Sheet'!Q28 -> 0 | P28: ='Input Sheet'!R28 -> 0 | Q28: ='Input Sheet'!S28 -> 0 | R28: ='Input Sheet'!T28 ->  | T28: ='Input Sheet'!V28 -> 22 | U28: ='Input Sheet'!W28 -> 0
A29: ='Input Sheet'!C29 -> 630059 | B29: ='Input Sheet'!D29 -> 2012 | C29: ='Input Sheet'!E29 -> TERRAIN | D29: ='Input Sheet'!F29 -> 76069 | E29: ='Input Sheet'!G29 -> 0 | F29: ='Input Sheet'!H29 -> 0 | G29: ='Input Sheet'!I29 -> 0 | H29: ='Input Sheet'!J29 ->  | J29: ='Input Sheet'!L29 -> 16.57 | K29: ='Input Sheet'!M29 -> 0.4 | L29: ='Input Sheet'!I29 -> 0 | M29: ='Input Sheet'!J29 ->  | O29: ='Input Sheet'!Q29 -> 0 | P29: ='Input Sheet'!R29 -> 0 | Q29: ='Input Sheet'!S29 -> 0 | R29: ='Input Sheet'!T29 ->  | T29: ='Input Sheet'!V29 -> 5 | U29: ='Input Sheet'!W29 -> 1
A30: ='Input Sheet'!C30 -> 630064 | B30: ='Input Sheet'!D30 -> 2016 | C30: ='Input Sheet'!E30 -> SIERRA | D30: ='Input Sheet'!F30 -> 20925 | E30: ='Input Sheet'!G30 -> 0 | F30: ='Input Sheet'!H30 -> 0 | G30: ='Input Sheet'!I30 -> 0 | H30: ='Input Sheet'!J30 ->  | J30: ='Input Sheet'!L30 -> 27 | K30: ='Input Sheet'!M30 -> 0.3 | L30: ='Input Sheet'!I30 -> 0 | M30: ='Input Sheet'!J30 ->  | O30: ='Input Sheet'!Q30 -> 0 | P30: ='Input Sheet'!R30 -> 0 | Q30: ='Input Sheet'!S30 -> 0 | R30: ='Input Sheet'!T30 ->  | T30: ='Input Sheet'!V30 -> 3.75 | U30: ='Input Sheet'!W30 -> 1
A31: ='Input Sheet'!C31 -> 630067 | B31: ='Input Sheet'!D31 -> 2008 | C31: ='Input Sheet'!E31 -> AURA | D31: ='Input Sheet'!F31 -> 103932 | E31: ='Input Sheet'!G31 -> 0 | F31: ='Input Sheet'!H31 -> 0 | G31: ='Input Sheet'!I31 -> 0 | H31: ='Input Sheet'!J31 ->  | J31: ='Input Sheet'!L31 -> 13.36 | K31: ='Input Sheet'!M31 -> 0.4 | L31: ='Input Sheet'!I31 -> 0 | M31: ='Input Sheet'!J31 ->  | O31: ='Input Sheet'!Q31 -> 0 | P31: ='Input Sheet'!R31 -> 0 | Q31: ='Input Sheet'!S31 -> 0 | R31: ='Input Sheet'!T31 ->  | T31: ='Input Sheet'!V31 -> 5 | U31: ='Input Sheet'!W31 -> 0
A32: ='Input Sheet'!C32 -> 630069 | B32: ='Input Sheet'!D32 -> 2015 | C32: ='Input Sheet'!E32 -> TERRAIN | D32: ='Input Sheet'!F32 -> 87540 | E32: ='Input Sheet'!G32 -> 0 | F32: ='Input Sheet'!H32 -> 0 | G32: ='Input Sheet'!I32 -> 0 | H32: ='Input Sheet'!J32 ->  | J32: ='Input Sheet'!L32 -> 26.52 | K32: ='Input Sheet'!M32 -> 0.7 | L32: ='Input Sheet'!I32 -> 0 | M32: ='Input Sheet'!J32 ->  | O32: ='Input Sheet'!Q32 -> 0 | P32: ='Input Sheet'!R32 -> 0 | Q32: ='Input Sheet'!S32 -> 0 | R32: ='Input Sheet'!T32 ->  | T32: ='Input Sheet'!V32 -> 8.75 | U32: ='Input Sheet'!W32 -> 0
A33: ='Input Sheet'!C33 -> 630071 | B33: ='Input Sheet'!D33 -> 2012 | C33: ='Input Sheet'!E33 -> ACADIA | D33: ='Input Sheet'!F33 -> 104376 | E33: ='Input Sheet'!G33 -> 129.95 | F33: ='Input Sheet'!H33 -> 1.5 | G33: ='Input Sheet'!I33 -> 61 | H33: ='Input Sheet'!J33 -> 34 | I33: 51 | J33: ='Input Sheet'!L33 -> 48 | K33: ='Input Sheet'!M33 -> 1.2 | L33: ='Input Sheet'!I33 -> 61 | M33: ='Input Sheet'!J33 -> 34 | N33: 40.8 | O33: ='Input Sheet'!Q33 -> 0 | P33: ='Input Sheet'!R33 -> 0 | Q33: ='Input Sheet'!S33 -> 0 | R33: ='Input Sheet'!T33 ->  | T33: ='Input Sheet'!V33 -> 66 | U33: ='Input Sheet'!W33 -> 0
A34: ='Input Sheet'!C34 -> 630073 | B34: ='Input Sheet'!D34 -> 2013 | C34: ='Input Sheet'!E34 -> TERRAIN | D34: ='Input Sheet'!F34 -> 46165 | E34: ='Input Sheet'!G34 -> 0 | F34: ='Input Sheet'!H34 -> 0 | G34: ='Input Sheet'!I34 -> 0 | H34: ='Input Sheet'!J34 ->  | J34: ='Input Sheet'!L34 -> 12 | K34: ='Input Sheet'!M34 -> 0.3 | L34: ='Input Sheet'!I34 -> 0 | M34: ='Input Sheet'!J34 ->  | O34: ='Input Sheet'!Q34 -> 0 | P34: ='Input Sheet'!R34 -> 0 | Q34: ='Input Sheet'!S34 -> 0 | R34: ='Input Sheet'!T34 ->  | T34: ='Input Sheet'!V34 -> 3.75 | U34: ='Input Sheet'!W34 -> 1
A35: ='Input Sheet'!C35 -> 630075 | B35: ='Input Sheet'!D35 -> 2015 | C35: ='Input Sheet'!E35 -> SIERRA | D35: ='Input Sheet'!F35 -> 46084 | E35: ='Input Sheet'!G35 -> 0 | F35: ='Input Sheet'!H35 -> 0 | G35: ='Input Sheet'!I35 -> 0 | H35: ='Input Sheet'!J35 ->  | J35: ='Input Sheet'!L35 -> 24.57 | K35: ='Input Sheet'!M35 -> 0.7 | L35: ='Input Sheet'!I35 -> 0 | M35: ='Input Sheet'!J35 ->  | O35: ='Input Sheet'!Q35 -> 0 | P35: ='Input Sheet'!R35 -> 0 | Q35: ='Input Sheet'!S35 -> 0 | R35: ='Input Sheet'!T35 ->  | T35: ='Input Sheet'!V35 -> 8.75 | U35: ='Input Sheet'!W35 -> 0
A36: ='Input Sheet'!C36 -> 630081 | B36: ='Input Sheet'!D36 -> 2014 | C36: ='Input Sheet'!E36 -> CAMARO | D36: ='Input Sheet'!F36 -> 71002 | E36: ='Input Sheet'!G36 -> 0 | F36: ='Input Sheet'!H36 -> 0 | G36: ='Input Sheet'!I36 -> 0 | H36: ='Input Sheet'!J36 ->  | J36: ='Input Sheet'!L36 -> 16.57 | K36: ='Input Sheet'!M36 -> 0.4 | L36: ='Input Sheet'!I36 -> 0 | M36: ='Input Sheet'!J36 ->  | O36: ='Input Sheet'!Q36 -> 0 | P36: ='Input Sheet'!R36 -> 0 | Q36: ='Input Sheet'!S36 -> 0 | R36: ='Input Sheet'!T36 ->  | T36: ='Input Sheet'!V36 -> 5 | U36: ='Input Sheet'!W36 -> 1
A37: ='Input Sheet'!C37 -> 630090 | B37: ='Input Sheet'!D37 -> 2012 | C37: ='Input Sheet'!E37 -> SIERRA | D37: ='Input Sheet'!F37 -> 49898 | E37: ='Input Sheet'!G37 -> 0 | F37: ='Input Sheet'!H37 -> 0 | G37: ='Input Sheet'!I37 -> 0 | H37: ='Input Sheet'!J37 ->  | J37: ='Input Sheet'!L37 -> 26.52 | K37: ='Input Sheet'!M37 -> 0.7 | L37: ='Input Sheet'!I37 -> 0 | M37: ='Input Sheet'!J37 ->  | O37: ='Input Sheet'!Q37 -> 0 | P37: ='Input Sheet'!R37 -> 0 | Q37: ='Input Sheet'!S37 -> 0 | R37: ='Input Sheet'!T37 ->  | T37: ='Input Sheet'!V37 -> 8.75 | U37: ='Input Sheet'!W37 -> 0
A38: ='Input Sheet'!C38 -> 630091 | B38: ='Input Sheet'!D38 -> 2011 | C38: ='Input Sheet'!E38 -> F-150 | D38: ='Input Sheet'!F38 -> 133571 | E38: ='Input Sheet'!G38 -> 0 | F38: ='Input Sheet'!H38 -> 0 | G38: ='Input Sheet'!I38 -> 0 | H38: ='Input Sheet'!J38 ->  | J38: ='Input Sheet'!L38 -> 24.95 | K38: ='Input Sheet'!M38 -> 0.7 | L38: ='Input Sheet'!I38 -> 0 | M38: ='Input Sheet'!J38 ->  | O38: ='Input Sheet'!Q38 -> 0 | P38: ='Input Sheet'!R38 -> 0 | Q38: ='Input Sheet'!S38 -> 0 | R38: ='Input Sheet'!T38 ->  | T38: ='Input Sheet'!V38 -> 8.75 | U38: ='Input Sheet'!W38 -> 0
A39: ='Input Sheet'!C39 -> 630092 | B39: ='Input Sheet'!D39 -> 2009 | C39: ='Input Sheet'!E39 -> SILVERADO | D39: ='Input Sheet'!F39 -> 56244 | E39: ='Input Sheet'!G39 -> 50 | F39: ='Input Sheet'!H39 -> 0.5 | G39: ='Input Sheet'!I39 -> 1354 | H39: ='Input Sheet'!J39 -> 26 | I39: 13 | J39: ='Input Sheet'!L39 -> 0 | K39: ='Input Sheet'!M39 -> 0 | L39: ='Input Sheet'!I39 -> 1354 | M39: ='Input Sheet'!J39 -> 26 | N39: 0 | O39: ='Input Sheet'!Q39 -> 244.26 | P39: ='Input Sheet'!R39 -> 2 | Q39: ='Input Sheet'!S39 -> 1354 | R39: ='Input Sheet'!T39 -> 26 | S39: 52 | T39: ='Input Sheet'!V39 -> 65 | U39: ='Input Sheet'!W39 -> 0
A40: ='Input Sheet'!C40 -> 630096 | B40: ='Input Sheet'!D40 -> 2015 | C40: ='Input Sheet'!E40 -> YUKON | D40: ='Input Sheet'!F40 -> 44801 | E40: ='Input Sheet'!G40 -> 0 | F40: ='Input Sheet'!H40 -> 0 | G40: ='Input Sheet'!I40 -> 0 | H40: ='Input Sheet'!J40 ->  | J40: ='Input Sheet'!L40 -> 0 | K40: ='Input Sheet'!M40 -> 0 | L40: ='Input Sheet'!I40 -> 0 | M40: ='Input Sheet'!J40 ->  | O40: ='Input Sheet'!Q40 -> 641.22 | P40: ='Input Sheet'!R40 -> 5.5 | Q40: ='Input Sheet'!S40 -> 2830/2529 | R40: ='Input Sheet'!T40 -> 28 | S40: 154 | T40: ='Input Sheet'!V40 -> 154 | U40: ='Input Sheet'!W40 -> 0
A41: ='Input Sheet'!C41 -> 630099 | B41: ='Input Sheet'!D41 -> 2011 | C41: ='Input Sheet'!E41 -> SIERRA | D41: ='Input Sheet'!F41 -> 38406 | E41: ='Input Sheet'!G41 -> 439.69 | F41: ='Input Sheet'!H41 -> 5.3 | G41: ='Input Sheet'!I41 -> 2623/1354/2830 | H41: ='Input Sheet'!J41 -> 25 | I41: 132.5 | J41: ='Input Sheet'!L41 -> 74.52 | K41: ='Input Sheet'!M41 -> 1.9 | L41: ='Input Sheet'!I41 -> 2623/1354/2830 | M41: ='Input Sheet'!J41 -> 25 | N41: 47.5 | O41: ='Input Sheet'!Q41 -> 295 | P41: ='Input Sheet'!R41 -> 2.5 | Q41: ='Input Sheet'!S41 -> 2830 | R41: ='Input Sheet'!T41 -> 24 | S41: 60 | T41: ='Input Sheet'!V41 -> 230.5 | U41: ='Input Sheet'!W41 -> 0
A42: ='Input Sheet'!C42 -> 631001 | B42: ='Input Sheet'!D42 -> 2008 | C42: ='Input Sheet'!E42 -> LACROSSE | D42: ='Input Sheet'!F42 -> 152107 | E42: ='Input Sheet'!G42 -> 0 | F42: ='Input Sheet'!H42 -> 0 | G42: ='Input Sheet'!I42 -> 0 | H42: ='Input Sheet'!J42 ->  | J42: ='Input Sheet'!L42 -> 18.36 | K42: ='Input Sheet'!M42 -> 0.4 | L42: ='Input Sheet'!I42 -> 0 | M42: ='Input Sheet'!J42 ->  | O42: ='Input Sheet'!Q42 -> 0 | P42: ='Input Sheet'!R42 -> 0 | Q42: ='Input Sheet'!S42 -> 0 | R42: ='Input Sheet'!T42 ->  | T42: ='Input Sheet'!V42 -> 5 | U42: ='Input Sheet'!W42 -> 0
A43: ='Input Sheet'!C43 -> 631003 | B43: ='Input Sheet'!D43 -> 2014 | C43: ='Input Sheet'!E43 -> ENCORE | D43: ='Input Sheet'!F43 -> 54260 | E43: ='Input Sheet'!G43 -> 0 | F43: ='Input Sheet'!H43 -> 0 | G43: ='Input Sheet'!I43 -> 0 | H43: ='Input Sheet'!J43 ->  | J43: ='Input Sheet'!L43 -> 21.57 | K43: ='Input Sheet'!M43 -> 0.4 | L43: ='Input Sheet'!I43 -> 0 | M43: ='Input Sheet'!J43 ->  | O43: ='Input Sheet'!Q43 -> 0 | P43: ='Input Sheet'!R43 -> 0 | Q43: ='Input Sheet'!S43 -> 0 | R43: ='Input Sheet'!T43 ->  | T43: ='Input Sheet'!V43 -> 5 | U43: ='Input Sheet'!W43 -> 0
A44: ='Input Sheet'!C44 -> 631005 | B44: ='Input Sheet'!D44 -> 2016 | C44: ='Input Sheet'!E44 -> ACADIA | D44: ='Input Sheet'!F44 -> 26420 | E44: ='Input Sheet'!G44 -> 0 | F44: ='Input Sheet'!H44 -> 0 | G44: ='Input Sheet'!I44 -> 0 | H44: ='Input Sheet'!J44 ->  | J44: ='Input Sheet'!L44 -> 26.52 | K44: ='Input Sheet'!M44 -> 0.7 | L44: ='Input Sheet'!I44 -> 0 | M44: ='Input Sheet'!J44 ->  | O44: ='Input Sheet'!Q44 -> 0 | P44: ='Input Sheet'!R44 -> 0 | Q44: ='Input Sheet'!S44 -> 0 | R44: ='Input Sheet'!T44 ->  | T44: ='Input Sheet'!V44 -> 8.75 | U44: ='Input Sheet'!W44 -> 0
A45: ='Input Sheet'!C45 -> 631007 | B45: ='Input Sheet'!D45 -> 2016 | C45: ='Input Sheet'!E45 -> ENVISION | D45: ='Input Sheet'!F45 -> 28340 | E45: ='Input Sheet'!G45 -> 0 | F45: ='Input Sheet'!H45 -> 0 | G45: ='Input Sheet'!I45 -> 0 | H45: ='Input Sheet'!J45 ->  | J45: ='Input Sheet'!L45 -> 26.52 | K45: ='Input Sheet'!M45 -> 0.7 | L45: ='Input Sheet'!I45 -> 0 | M45: ='Input Sheet'!J45 ->  | O45: ='Input Sheet'!Q45 -> 0 | P45: ='Input Sheet'!R45 -> 0 | Q45: ='Input Sheet'!S45 -> 0 | R45: ='Input Sheet'!T45 ->  | T45: ='Input Sheet'!V45 -> 8.75 | U45: ='Input Sheet'!W45 -> 0
A46: ='Input Sheet'!C46 -> 631009 | B46: ='Input Sheet'!D46 -> 2008 | C46: ='Input Sheet'!E46 -> VUE | D46: ='Input Sheet'!F46 -> 44316 | E46: ='Input Sheet'!G46 -> 0 | F46: ='Input Sheet'!H46 -> 0 | G46: ='Input Sheet'!I46 -> 0 | H46: ='Input Sheet'!J46 ->  | J46: ='Input Sheet'!L46 -> 0 | K46: ='Input Sheet'!M46 -> 0 | L46: ='Input Sheet'!I46 -> 0 | M46: ='Input Sheet'!J46 ->  | O46: ='Input Sheet'!Q46 -> 59 | P46: ='Input Sheet'!R46 -> 0.5 | Q46: ='Input Sheet'!S46 -> 2331 | R46: ='Input Sheet'!T46 -> 19 | S46: 9.5 | T46: ='Input Sheet'!V46 -> 9.5 | U46: ='Input Sheet'!W46 -> 1
A47: ='Input Sheet'!C47 -> 631016 | B47: ='Input Sheet'!D47 -> 2014 | C47: ='Input Sheet'!E47 -> ENCLAVE | D47: ='Input Sheet'!F47 -> 34488 | E47: ='Input Sheet'!G47 -> 0 | F47: ='Input Sheet'!H47 -> 0 | G47: ='Input Sheet'!I47 -> 0 | H47: ='Input Sheet'!J47 ->  | J47: ='Input Sheet'!L47 -> 66.52 | K47: ='Input Sheet'!M47 -> 1.2 | L47: ='Input Sheet'!I47 -> 0 | M47: ='Input Sheet'!J47 ->  | O47: ='Input Sheet'!Q47 -> 0 | P47: ='Input Sheet'!R47 -> 0 | Q47: ='Input Sheet'!S47 -> 0 | R47: ='Input Sheet'!T47 ->  | T47: ='Input Sheet'!V47 -> 15 | U47: ='Input Sheet'!W47 -> 0
A48: ='Input Sheet'!C48 -> 631017 | B48: ='Input Sheet'!D48 -> 2014 | C48: ='Input Sheet'!E48 -> SILVERADO | D48: ='Input Sheet'!F48 -> 33497 | E48: ='Input Sheet'!G48 -> 59.95 | F48: ='Input Sheet'!H48 -> 1 | G48: ='Input Sheet'!I48 -> 2816 | H48: ='Input Sheet'!J48 -> 20 | I48: 20 | J48: ='Input Sheet'!L48 -> 39.95 | K48: ='Input Sheet'!M48 -> 0.8 | L48: ='Input Sheet'!I48 -> 2816 | M48: ='Input Sheet'!J48 -> 20 | N48: 16 | O48: ='Input Sheet'!Q48 -> 0 | P48: ='Input Sheet'!R48 -> 0 | Q48: ='Input Sheet'!S48 -> 0 | R48: ='Input Sheet'!T48 ->  | T48: ='Input Sheet'!V48 -> 36 | U48: ='Input Sheet'!W48 -> 0
A49: ='Input Sheet'!C49 -> 631019 | B49: ='Input Sheet'!D49 -> 2016 | C49: ='Input Sheet'!E49 -> CHEVROLET | D49: ='Input Sheet'!F49 -> 28569 | E49: ='Input Sheet'!G49 -> 0 | F49: ='Input Sheet'!H49 -> 0 | G49: ='Input Sheet'!I49 -> 0 | H49: ='Input Sheet'!J49 ->  | J49: ='Input Sheet'!L49 -> 26.52 | K49: ='Input Sheet'!M49 -> 0.7 | L49: ='Input Sheet'!I49 -> 0 | M49: ='Input Sheet'!J49 ->  | O49: ='Input Sheet'!Q49 -> 0 | P49: ='Input Sheet'!R49 -> 0 | Q49: ='Input Sheet'!S49 -> 0 | R49: ='Input Sheet'!T49 ->  | T49: ='Input Sheet'!V49 -> 8.75 | U49: ='Input Sheet'!W49 -> 0
A50: ='Input Sheet'!C50 -> 631021 | B50: ='Input Sheet'!D50 -> 2004 | C50: ='Input Sheet'!E50 -> ALERO | D50: ='Input Sheet'!F50 -> 111000 | E50: ='Input Sheet'!G50 -> 0 | F50: ='Input Sheet'!H50 -> 0 | G50: ='Input Sheet'!I50 -> 0 | H50: ='Input Sheet'!J50 ->  | J50: ='Input Sheet'!L50 -> 0 | K50: ='Input Sheet'!M50 -> 0 | L50: ='Input Sheet'!I50 -> 0 | M50: ='Input Sheet'!J50 ->  | O50: ='Input Sheet'!Q50 -> 244.26 | P50: ='Input Sheet'!R50 -> 2 | Q50: ='Input Sheet'!S50 -> 131 | R50: ='Input Sheet'!T50 -> 22 | S50: 44 | T50: ='Input Sheet'!V50 -> 44 | U50: ='Input Sheet'!W50 -> 0
A51: ='Input Sheet'!C51 -> 631027 | B51: ='Input Sheet'!D51 -> 2014 | C51: ='Input Sheet'!E51 -> REGAL | D51: ='Input Sheet'!D51 -> 2014 | E51: ='Input Sheet'!G51 -> 0 | F51: ='Input Sheet'!H51 -> 0 | G51: ='Input Sheet'!I51 -> 0 | H51: ='Input Sheet'!J51 ->  | I51: =F55*H51 ->  | J51: ='Input Sheet'!L51 -> 16.57 | K51: ='Input Sheet'!M51 -> 0.4 | L51: ='Input Sheet'!I51 -> 0 | M51: ='Input Sheet'!J51 ->  | O51: ='Input Sheet'!Q51 -> 0 | P51: ='Input Sheet'!R51 -> 0 | Q51: ='Input Sheet'!S51 -> 0 | R51: ='Input Sheet'!T51 ->  | T51: ='Input Sheet'!V51 -> 5 | U51: ='Input Sheet'!W51 -> 1
A52: ='Input Sheet'!C52 -> 631029 | B52: ='Input Sheet'!D52 -> 2012 | C52: ='Input Sheet'!E52 -> ACADIA | D52: ='Input Sheet'!F52 -> 63847 | E52: ='Input Sheet'!G52 -> 0 | F52: ='Input Sheet'!H52 -> 0 | G52: ='Input Sheet'!I99 -> 0 | H52: ='Input Sheet'!J99 ->  | J52: ='Input Sheet'!L52 -> 0 | K52: ='Input Sheet'!M52 -> 0 | L52: ='Input Sheet'!I99 -> 0 | M52: ='Input Sheet'!J99 ->  | O52: ='Input Sheet'!Q52 -> 177 | P52: ='Input Sheet'!R52 -> 1.5 | Q52: ='Input Sheet'!S99 -> 0 | R52: ='Input Sheet'!T99 ->  | T52: ='Input Sheet'!V52 -> 48 | U52: ='Input Sheet'!W52 -> 1
A53: ='Input Sheet'!C53 -> 631039 | B53: ='Input Sheet'!D53 -> 2009 | C53: ='Input Sheet'!E53 -> CANYON | D53: ='Input Sheet'!F53 -> 138232 | E53: ='Input Sheet'!G53 -> 0 | F53: ='Input Sheet'!H53 -> 0 | G53: ='Input Sheet'!I100 -> 0 | H53: ='Input Sheet'!J100 ->  | J53: ='Input Sheet'!L53 -> 13.36 | K53: ='Input Sheet'!M53 -> 0.4 | L53: ='Input Sheet'!I100 -> 0 | M53: ='Input Sheet'!J100 ->  | O53: ='Input Sheet'!Q53 -> 0 | P53: ='Input Sheet'!R53 -> 0 | Q53: ='Input Sheet'!S100 -> 0 | R53: ='Input Sheet'!T100 ->  | T53: ='Input Sheet'!V53 -> 5 | U53: ='Input Sheet'!W53 -> 1
A54: ='Input Sheet'!C54 -> 631040 | B54: ='Input Sheet'!D54 -> 2011 | C54: ='Input Sheet'!E54 -> MALIBU | D54: ='Input Sheet'!F54 -> 53819 | E54: ='Input Sheet'!G54 -> 0 | F54: ='Input Sheet'!H54 -> 0 | G54: ='Input Sheet'!I101 -> 0 | H54: ='Input Sheet'!J101 ->  | I54: =F54*H54 ->  | J54: ='Input Sheet'!L54 -> 13.36 | K54: ='Input Sheet'!M54 -> 0.4 | L54: ='Input Sheet'!I101 -> 0 | M54: ='Input Sheet'!J101 ->  | N54: =K54*M54 ->  | O54: ='Input Sheet'!Q54 -> 0 | P54: ='Input Sheet'!R54 -> 0 | Q54: ='Input Sheet'!S101 -> 0 | R54: ='Input Sheet'!T101 ->  | S54: =P54*R54 ->  | T54: ='Input Sheet'!V54 -> 5 | U54: ='Input Sheet'!W54 -> 1
A55: ='Input Sheet'!C55 -> 631042 | B55: ='Input Sheet'!D55 -> 2016 | C55: ='Input Sheet'!E55 -> ACADIA | D55: ='Input Sheet'!F55 -> 42324 | E55: ='Input Sheet'!G55 -> 0 | F55: ='Input Sheet'!H55 -> 0 | G55: ='Input Sheet'!I105 -> 0 | H55: ='Input Sheet'!J105 ->  | I55: =#REF!*H55 ->  | J55: ='Input Sheet'!L55 -> 16.57 | K55: ='Input Sheet'!M55 -> 0.4 | L55: ='Input Sheet'!I105 -> 0 | M55: ='Input Sheet'!J105 ->  | O55: ='Input Sheet'!Q55 -> 118 | P55: ='Input Sheet'!R55 -> 1 | Q55: ='Input Sheet'!S105 -> 2331 | R55: ='Input Sheet'!T105 -> 19 | S55: 19 | T55: ='Input Sheet'!V55 -> 27.4 | U55: ='Input Sheet'!W55 -> 0
A56: RO's 1-50 | D56: Totals | E56: =SUM(E6:E55) -> 1962.59 | F56: =SUM(F6:F55) -> 20.4 | I56: =SUM(I6:I55) ->  | J56: 1368.4 | K56: 27.7 | L56: 9523 | M56: 170 | O56: =SUM(O6:O55) -> 2787.94 | P56: 23.5 | T56: 1407.76 | U56: =COUNTIF(U5:U55,1) -> 15
A57: Date of Study: | E57: C Labor | J57: M Labor | O57: R Labor | T57: Total Cost of Labor | U57: One Item Repair Order
A58: Study Compiled by | E58: Labor Sales | F58: Flat Rate Hours | G58: Technician Number | H58: Pay Per FRH | I58: Labor Cost | J58: Labor Sales | K58: Flat Rate Hours | L58: Technician Number | M58: Pay Per FRH | N58: Labor Cost | O58: Labor Sales | P58: Flat Rate Hours | Q58: Technician Number | R58: Pay Per FRH | S58: Labor Cost
T65: `

Sheet RO Report 51-100
A1: Repair Order Analysis
E2: Competitive Labor | J2: Maintenance Labor | O2: Repair Labor
A3: Dealership | T3: Total Cost of Labor | U3: One Item Repair Order
A4: RO Number | E4: Labor Sales | F4: Flat Rate Hours | G4: Technician Number | H4: Pay Per FRH | I4: Labor Cost | J4: Labor Sales | K4: Flat Rate Hours | L4: Technician Number | M4: Pay Per FRH | N4: Labor Cost | O4: Labor Sales | P4: Flat Rate Hours | Q4: Technician Number | R4: Pay Per FRH | S4: Labor Cost
B5: Year | C5: Model | D5: Mileage
A6: ='Input Sheet'!C56 -> 631043 | B6: ='Input Sheet'!D56 -> 2015 | C6: ='Input Sheet'!E56 -> SILVERADO | D6: ='Input Sheet'!F56 -> 35557 | E6: ='Input Sheet'!G56 -> 0 | F6: ='Input Sheet'!H56 -> 0 | G6: ='Input Sheet'!I56 -> 0 | H6: ='Input Sheet'!J56 ->  | I6: =F6*H6 ->  | J6: ='Input Sheet'!L56 -> 26.52 | K6: ='Input Sheet'!M56 -> 0.8 | L6: ='Input Sheet'!N56 -> 2860 | M6: ='Input Sheet'!O56 -> 12.5 | N6: =K6*M6 -> 10 | O6: ='Input Sheet'!Q56 -> 0 | P6: ='Input Sheet'!R56 -> 0 | Q6: ='Input Sheet'!S56 -> 0 | R6: ='Input Sheet'!T56 ->  | S6: =P6*R6 ->  | T6: ='Input Sheet'!V56 -> 10 | U6: ='Input Sheet'!W56 -> 0
A7: ='Input Sheet'!C57 -> 631049 | B7: ='Input Sheet'!D57 -> 2011 | C7: ='Input Sheet'!E57 -> ACADIA | D7: ='Input Sheet'!F57 -> 120043 | E7: ='Input Sheet'!G57 -> 139.95 | F7: ='Input Sheet'!H57 -> 1.5 | G7: ='Input Sheet'!I57 -> 2816 | H7: ='Input Sheet'!J57 -> 20 | I7: 30 | J7: ='Input Sheet'!L57 -> 0 | K7: ='Input Sheet'!M57 -> 0 | L7: ='Input Sheet'!N57 -> 0 | M7: ='Input Sheet'!O57 ->  | O7: ='Input Sheet'!Q57 -> 247.8 | P7: ='Input Sheet'!R57 -> 2.1 | Q7: ='Input Sheet'!S57 -> 2816 | R7: ='Input Sheet'!T57 -> 20 | S7: 42 | T7: ='Input Sheet'!V57 -> 72 | U7: ='Input Sheet'!W57 -> 0
A8: ='Input Sheet'!C58 -> 631050 | B8: ='Input Sheet'!D58 -> 2009 | C8: ='Input Sheet'!E58 -> ENCLAVE | D8: ='Input Sheet'!F58 -> 94062 | E8: ='Input Sheet'!G58 -> 0 | F8: ='Input Sheet'!H58 -> 0 | G8: ='Input Sheet'!I58 -> 0 | H8: ='Input Sheet'!J58 ->  | J8: ='Input Sheet'!L58 -> 0 | K8: ='Input Sheet'!M58 -> 0 | L8: ='Input Sheet'!N58 -> 0 | M8: ='Input Sheet'!O58 ->  | O8: ='Input Sheet'!Q58 -> 916.89 | P8: ='Input Sheet'!R58 -> 6.5 | Q8: ='Input Sheet'!S58 -> 2170 | R8: ='Input Sheet'!T58 -> 32 | S8: 208 | T8: ='Input Sheet'!V58 -> 208 | U8: ='Input Sheet'!W58 -> 1
A9: ='Input Sheet'!C59 -> 631055 | B9: ='Input Sheet'!D59 -> 2012 | C9: ='Input Sheet'!E59 -> MALIBU | D9: ='Input Sheet'!F59 -> 81283 | E9: ='Input Sheet'!G59 -> 222.1 | F9: ='Input Sheet'!H59 -> 2.9 | G9: ='Input Sheet'!I59 -> 2786/2180 | H9: ='Input Sheet'!J59 -> 16 | I9: 46.4 | J9: ='Input Sheet'!L59 -> 35 | K9: ='Input Sheet'!M59 -> 1 | L9: ='Input Sheet'!N59 -> 2786 | M9: ='Input Sheet'!O59 -> 12.5 | N9: 12.5 | O9: ='Input Sheet'!Q59 -> 0 | P9: ='Input Sheet'!R59 -> 0 | Q9: ='Input Sheet'!S59 -> 0 | R9: ='Input Sheet'!T59 ->  | T9: ='Input Sheet'!V59 -> 58.9 | U9: ='Input Sheet'!W59 -> 0
A10: ='Input Sheet'!C60 -> 631059 | B10: ='Input Sheet'!D60 -> 2015 | C10: ='Input Sheet'!E60 -> LACROSSE | D10: ='Input Sheet'!F60 -> 30178 | E10: ='Input Sheet'!G60 -> 0 | F10: ='Input Sheet'!H60 -> 0 | G10: ='Input Sheet'!I60 -> 0 | H10: ='Input Sheet'!J60 ->  | J10: ='Input Sheet'!L60 -> 16.57 | K10: ='Input Sheet'!M60 -> 0.4 | L10: ='Input Sheet'!N60 -> 2781 | M10: ='Input Sheet'!O60 -> 12.5 | N10: 5 | O10: ='Input Sheet'!Q60 -> 0 | P10: ='Input Sheet'!R60 -> 0 | Q10: ='Input Sheet'!S60 -> 0 | R10: ='Input Sheet'!T60 ->  | T10: ='Input Sheet'!V60 -> 5 | U10: ='Input Sheet'!W60 -> 1
A11: ='Input Sheet'!C61 -> 631063 | B11: ='Input Sheet'!D61 -> 2012 | C11: ='Input Sheet'!E61 -> SIERRA | D11: ='Input Sheet'!F61 -> 51378 | E11: ='Input Sheet'!G61 -> 0 | F11: ='Input Sheet'!H61 -> 0 | G11: ='Input Sheet'!I61 -> 0 | H11: ='Input Sheet'!J61 ->  | J11: ='Input Sheet'!L61 -> 16.57 | K11: ='Input Sheet'!M61 -> 0.4 | L11: ='Input Sheet'!N61 -> 2860 | M11: ='Input Sheet'!O61 -> 12.5 | N11: 5 | O11: ='Input Sheet'!Q61 -> 0 | P11: ='Input Sheet'!R61 -> 0 | Q11: ='Input Sheet'!S61 -> 0 | R11: ='Input Sheet'!T61 ->  | T11: ='Input Sheet'!V61 -> 5 | U11: ='Input Sheet'!W61 -> 1
A12: ='Input Sheet'!C62 -> 631069 | B12: ='Input Sheet'!D62 -> 2007 | C12: ='Input Sheet'!E62 -> 9-7 SAAB | D12: ='Input Sheet'!F62 -> 130382 | E12: ='Input Sheet'!G62 -> 0 | F12: ='Input Sheet'!H62 -> 0 | G12: ='Input Sheet'!I62 -> 0 | H12: ='Input Sheet'!J62 ->  | J12: ='Input Sheet'!L62 -> 13.36 | K12: ='Input Sheet'!M62 -> 0.4 | L12: ='Input Sheet'!N62 -> 2762 | M12: ='Input Sheet'!O62 -> 12.5 | N12: 5 | O12: ='Input Sheet'!Q62 -> 0 | P12: ='Input Sheet'!R62 -> 0 | Q12: ='Input Sheet'!S62 -> 0 | R12: ='Input Sheet'!T62 ->  | T12: ='Input Sheet'!V62 -> 5 | U12: ='Input Sheet'!W62 -> 1
A13: ='Input Sheet'!C63 -> 631073 | B13: ='Input Sheet'!D63 -> 2014 | C13: ='Input Sheet'!E63 -> SIERRA | D13: ='Input Sheet'!F63 -> 33580 | E13: ='Input Sheet'!G63 -> 0 | F13: ='Input Sheet'!H63 -> 0 | G13: ='Input Sheet'!I63 -> 0 | H13: ='Input Sheet'!J63 ->  | J13: ='Input Sheet'!L63 -> 16.57 | K13: ='Input Sheet'!M63 -> 0.4 | L13: ='Input Sheet'!N63 -> 2087 | M13: ='Input Sheet'!O63 -> 13.5 | N13: 5.4 | O13: ='Input Sheet'!Q63 -> 0 | P13: ='Input Sheet'!R63 -> 0 | Q13: ='Input Sheet'!S63 -> 0 | R13: ='Input Sheet'!T63 ->  | T13: ='Input Sheet'!V63 -> 5.4 | U13: ='Input Sheet'!W63 -> 1
A14: ='Input Sheet'!C64 -> 631074 | B14: ='Input Sheet'!D64 -> 2014 | C14: ='Input Sheet'!E64 -> TERRAIN | D14: ='Input Sheet'!F64 -> 37902 | E14: ='Input Sheet'!G64 -> 0 | F14: ='Input Sheet'!H64 -> 0 | G14: ='Input Sheet'!I64 -> 0 | H14: ='Input Sheet'!J64 ->  | J14: ='Input Sheet'!L64 -> 26.52 | K14: ='Input Sheet'!M64 -> 0.7 | L14: ='Input Sheet'!N64 -> 2768 | M14: ='Input Sheet'!O64 -> 12.5 | N14: 8.75 | O14: ='Input Sheet'!Q64 -> 0 | P14: ='Input Sheet'!R64 -> 0 | Q14: ='Input Sheet'!S64 -> 0 | R14: ='Input Sheet'!T64 ->  | T14: ='Input Sheet'!V64 -> 8.75 | U14: ='Input Sheet'!W64 -> 0
A15: ='Input Sheet'!C65 -> 631077 | B15: ='Input Sheet'!D65 -> 2010 | C15: ='Input Sheet'!E65 -> IMPALA | D15: ='Input Sheet'!F65 -> 88318 | E15: ='Input Sheet'!G65 -> 76.05 | F15: ='Input Sheet'!H65 -> 1 | G15: ='Input Sheet'!I65 -> 61 | H15: ='Input Sheet'!J65 -> 34 | I15: 34 | J15: ='Input Sheet'!L65 -> 9.95 | K15: ='Input Sheet'!M65 -> 0.4 | L15: ='Input Sheet'!N65 -> 2781 | M15: ='Input Sheet'!O65 -> 12.5 | N15: 5 | O15: ='Input Sheet'!Q65 -> 0 | P15: ='Input Sheet'!R65 -> 0 | Q15: ='Input Sheet'!S65 -> 0 | R15: ='Input Sheet'!T65 ->  | T15: ='Input Sheet'!V65 -> 39 | U15: ='Input Sheet'!W65 -> 0
A16: ='Input Sheet'!C66 -> 631086 | B16: ='Input Sheet'!D66 -> 2008 | C16: ='Input Sheet'!E66 -> LUCERNE | D16: ='Input Sheet'!F66 -> 94860 | E16: ='Input Sheet'!G66 -> 0 | F16: ='Input Sheet'!H66 -> 0 | G16: ='Input Sheet'!I66 -> 0 | H16: ='Input Sheet'!J66 ->  | J16: ='Input Sheet'!L66 -> 13.36 | K16: ='Input Sheet'!M66 -> 0.4 | L16: ='Input Sheet'!N66 -> 2781 | M16: ='Input Sheet'!O66 -> 12.5 | N16: 5 | O16: ='Input Sheet'!Q66 -> 0 | P16: ='Input Sheet'!R66 -> 0 | Q16: ='Input Sheet'!S66 -> 0 | R16: ='Input Sheet'!T66 ->  | T16: ='Input Sheet'!V66 -> 5 | U16: ='Input Sheet'!W66 -> 1
A17: ='Input Sheet'!C67 -> 632008 | B17: ='Input Sheet'!D67 -> 2004 | C17: ='Input Sheet'!E67 -> AZTEK | D17: ='Input Sheet'!F67 -> 89096 | E17: ='Input Sheet'!G67 -> 0 | F17: ='Input Sheet'!H67 -> 0 | G17: ='Input Sheet'!I67 -> 0 | H17: ='Input Sheet'!J67 ->  | J17: ='Input Sheet'!L67 -> 32 | K17: ='Input Sheet'!M67 -> 0.4 | L17: ='Input Sheet'!N67 -> 2801 | M17: ='Input Sheet'!O67 -> 12.5 | N17: 5 | O17: ='Input Sheet'!Q67 -> 0 | P17: ='Input Sheet'!R67 -> 0 | Q17: ='Input Sheet'!S67 -> 0 | R17: ='Input Sheet'!T67 ->  | T17: ='Input Sheet'!V67 -> 5 | U17: ='Input Sheet'!W67 -> 1
A18: ='Input Sheet'!C68 -> 632012 | B18: ='Input Sheet'!D68 -> 2016 | C18: ='Input Sheet'!E68 -> TRAX | D18: ='Input Sheet'!F68 -> 27653 | E18: ='Input Sheet'!G68 -> 0 | F18: ='Input Sheet'!H68 -> 0 | G18: ='Input Sheet'!I68 -> 0 | H18: ='Input Sheet'!J68 ->  | J18: ='Input Sheet'!L68 -> 26.52 | K18: ='Input Sheet'!M68 -> 0.7 | L18: ='Input Sheet'!N68 -> 2768 | M18: ='Input Sheet'!O68 -> 12.5 | N18: 8.75 | O18: ='Input Sheet'!Q68 -> 0 | P18: ='Input Sheet'!R68 -> 0 | Q18: ='Input Sheet'!S68 -> 0 | R18: ='Input Sheet'!T68 ->  | T18: ='Input Sheet'!V68 -> 8.75 | U18: ='Input Sheet'!W68 -> 0
A19: ='Input Sheet'!C69 -> 632013 | B19: ='Input Sheet'!D69 -> 2005 | C19: ='Input Sheet'!E69 -> VENTURE | D19: ='Input Sheet'!F69 -> 66808 | E19: ='Input Sheet'!G69 -> 0 | F19: ='Input Sheet'!H69 -> 0 | G19: ='Input Sheet'!I69 -> 0 | H19: ='Input Sheet'!J69 ->  | J19: ='Input Sheet'!L69 -> 23.31 | K19: ='Input Sheet'!M69 -> 0.7 | L19: ='Input Sheet'!N69 -> 2781 | M19: ='Input Sheet'!O69 -> 12.5 | N19: 8.75 | O19: ='Input Sheet'!Q69 -> 0 | P19: ='Input Sheet'!R69 -> 0 | Q19: ='Input Sheet'!S69 -> 0 | R19: ='Input Sheet'!T69 ->  | T19: ='Input Sheet'!V69 -> 8.75 | U19: ='Input Sheet'!W69 -> 0
A20: ='Input Sheet'!C70 -> 632015 | B20: ='Input Sheet'!D70 -> 2011 | C20: ='Input Sheet'!E70 -> SIERRA | D20: ='Input Sheet'!F70 -> 109691 | E20: ='Input Sheet'!G70 -> 0 | F20: ='Input Sheet'!H70 -> 0 | G20: ='Input Sheet'!I70 -> 0 | H20: ='Input Sheet'!J70 ->  | J20: ='Input Sheet'!L70 -> 26.52 | K20: ='Input Sheet'!M70 -> 0.7 | L20: ='Input Sheet'!N70 -> 2860 | M20: ='Input Sheet'!O70 -> 12.5 | N20: 8.75 | O20: ='Input Sheet'!Q70 -> 0 | P20: ='Input Sheet'!R70 -> 0 | Q20: ='Input Sheet'!S70 -> 0 | R20: ='Input Sheet'!T70 ->  | T20: ='Input Sheet'!V70 -> 8.75 | U20: ='Input Sheet'!W70 -> 0
A21: ='Input Sheet'!C71 -> 632031 | B21: ='Input Sheet'!D71 -> 2010 | C21: ='Input Sheet'!E71 -> MARINER | D21: ='Input Sheet'!F71 -> 182552 | E21: ='Input Sheet'!G71 -> 0 | F21: ='Input Sheet'!H71 -> 0 | G21: ='Input Sheet'!I71 -> 0 | H21: ='Input Sheet'!J71 ->  | J21: ='Input Sheet'!L71 -> 13.36 | K21: ='Input Sheet'!M71 -> 0.4 | L21: ='Input Sheet'!N71 -> 2860 | M21: ='Input Sheet'!O71 -> 12.5 | N21: 5 | O21: ='Input Sheet'!Q71 -> 0 | P21: ='Input Sheet'!R71 -> 0 | Q21: ='Input Sheet'!S71 -> 0 | R21: ='Input Sheet'!T71 ->  | T21: ='Input Sheet'!V71 -> 5 | U21: ='Input Sheet'!W71 -> 1
A22: ='Input Sheet'!C72 -> 632033 | B22: ='Input Sheet'!D72 -> 2014 | C22: ='Input Sheet'!E72 -> ENCORE | D22: ='Input Sheet'!F72 -> 37603 | E22: ='Input Sheet'!G72 -> 0 | F22: ='Input Sheet'!H72 -> 0 | G22: ='Input Sheet'!I72 -> 0 | H22: ='Input Sheet'!J72 ->  | J22: ='Input Sheet'!L72 -> 16.57 | K22: ='Input Sheet'!M72 -> 0.4 | L22: ='Input Sheet'!N72 -> 2768 | M22: ='Input Sheet'!O72 -> 12.5 | N22: 5 | O22: ='Input Sheet'!Q72 -> 0 | P22: ='Input Sheet'!R72 -> 0 | Q22: ='Input Sheet'!S72 -> 0 | R22: ='Input Sheet'!T72 ->  | T22: ='Input Sheet'!V72 -> 5 | U22: ='Input Sheet'!W72 -> 1
A23: ='Input Sheet'!C73 -> 632036 | B23: ='Input Sheet'!D73 -> 2016 | C23: ='Input Sheet'!E73 -> FUSION | D23: ='Input Sheet'!F73 -> 39941 | E23: ='Input Sheet'!G73 -> 0 | F23: ='Input Sheet'!H73 -> 0 | G23: ='Input Sheet'!I73 -> 0 | H23: ='Input Sheet'!J73 ->  | J23: ='Input Sheet'!L73 -> 29.95 | K23: ='Input Sheet'!M73 -> 0.7 | L23: ='Input Sheet'!N73 -> 2781 | M23: ='Input Sheet'!O73 -> 12.5 | N23: 8.75 | O23: ='Input Sheet'!Q73 -> 0 | P23: ='Input Sheet'!R73 -> 0 | Q23: ='Input Sheet'!S73 -> 0 | R23: ='Input Sheet'!T73 ->  | T23: ='Input Sheet'!V73 -> 8.75 | U23: ='Input Sheet'!W73 -> 0
A24: ='Input Sheet'!C74 -> 632041 | B24: ='Input Sheet'!D74 -> 2011 | C24: ='Input Sheet'!E74 -> TERRAIN | D24: ='Input Sheet'!F74 -> 157488 | E24: ='Input Sheet'!G74 -> 0 | F24: ='Input Sheet'!H74 -> 0 | G24: ='Input Sheet'!I74 -> 0 | H24: ='Input Sheet'!J74 ->  | J24: ='Input Sheet'!L74 -> 26.52 | K24: ='Input Sheet'!M74 -> 0.7 | L24: ='Input Sheet'!N74 -> 2768 | M24: ='Input Sheet'!O74 -> 12.5 | N24: 8.75 | O24: ='Input Sheet'!Q74 -> 0 | P24: ='Input Sheet'!R74 -> 0 | Q24: ='Input Sheet'!S74 -> 0 | R24: ='Input Sheet'!T74 ->  | T24: ='Input Sheet'!V74 -> 8.75 | U24: ='Input Sheet'!W74 -> 0
A25: ='Input Sheet'!C75 -> 632043 | B25: ='Input Sheet'!D75 -> 2011 | C25: ='Input Sheet'!E75 -> SILVERADO | D25: ='Input Sheet'!F75 -> 28240 | E25: ='Input Sheet'!G75 -> 0 | F25: ='Input Sheet'!H75 -> 0 | G25: ='Input Sheet'!I75 -> 0 | H25: ='Input Sheet'!J75 ->  | J25: ='Input Sheet'!L75 -> 16.57 | K25: ='Input Sheet'!M75 -> 0.4 | L25: ='Input Sheet'!N75 -> 2678 | M25: ='Input Sheet'!O75 -> 12.5 | N25: 5 | O25: ='Input Sheet'!Q75 -> 0 | P25: ='Input Sheet'!R75 -> 0 | Q25: ='Input Sheet'!S75 -> 0 | R25: ='Input Sheet'!T75 ->  | T25: ='Input Sheet'!V75 -> 5 | U25: ='Input Sheet'!W75 -> 1
A26: ='Input Sheet'!C76 -> 632045 | B26: ='Input Sheet'!D76 -> 2009 | C26: ='Input Sheet'!E76 -> ENCLAVE | D26: ='Input Sheet'!F76 -> 74912 | E26: ='Input Sheet'!G76 -> 89.95 | F26: ='Input Sheet'!H76 -> 1.5 | G26: ='Input Sheet'!I76 -> 1354 | H26: ='Input Sheet'!J76 -> 26 | I26: 39 | J26: ='Input Sheet'!L76 ->  | K26: ='Input Sheet'!M76 ->  | L26: ='Input Sheet'!N76 ->  | M26: ='Input Sheet'!O76 ->  | O26: ='Input Sheet'!Q76 -> 1345 | P26: ='Input Sheet'!R76 -> 12.1 | Q26: ='Input Sheet'!S76 -> 1354 | R26: ='Input Sheet'!T76 -> 26 | S26: 314.6 | T26: ='Input Sheet'!V76 -> 353.6 | U26: ='Input Sheet'!W76 -> 0
A27: ='Input Sheet'!C77 -> 632047 | B27: ='Input Sheet'!D77 -> 2016 | C27: ='Input Sheet'!E77 -> ACADIA | D27: ='Input Sheet'!F77 -> 19352 | E27: ='Input Sheet'!G77 -> 0 | F27: ='Input Sheet'!H77 -> 0 | G27: ='Input Sheet'!I77 -> 0 | H27: ='Input Sheet'!J77 ->  | J27: ='Input Sheet'!L77 -> 26.52 | K27: ='Input Sheet'!M77 -> 0.7 | L27: ='Input Sheet'!N77 -> 2768 | M27: ='Input Sheet'!O77 -> 12.5 | N27: 8.75 | O27: ='Input Sheet'!Q77 -> 0 | P27: ='Input Sheet'!R77 -> 0 | Q27: ='Input Sheet'!S77 -> 0 | R27: ='Input Sheet'!T77 ->  | T27: ='Input Sheet'!V77 -> 8.75 | U27: ='Input Sheet'!W77 -> 0
A28: ='Input Sheet'!C78 -> 632048 | B28: ='Input Sheet'!D78 -> 2011 | C28: ='Input Sheet'!E78 -> TERRAIN | D28: ='Input Sheet'!F78 -> 124023 | E28: ='Input Sheet'!G78 -> 0 | F28: ='Input Sheet'!H78 -> 0 | G28: ='Input Sheet'!I78 -> 0 | H28: ='Input Sheet'!J78 ->  | J28: ='Input Sheet'!L78 -> 40.57 | K28: ='Input Sheet'!M78 -> 1 | L28: ='Input Sheet'!N78 -> 2762 | M28: ='Input Sheet'!O78 -> 12.5 | N28: 12.5 | O28: ='Input Sheet'!Q78 -> 396.83 | P28: ='Input Sheet'!R78 -> 3.3 | Q28: ='Input Sheet'!S78 -> 1354 | R28: ='Input Sheet'!T78 -> 26 | S28: 85.8 | T28: ='Input Sheet'!V78 -> 98.3 | U28: ='Input Sheet'!W78 -> 0
A29: ='Input Sheet'!C79 -> 632049 | B29: ='Input Sheet'!D79 -> 2015 | C29: ='Input Sheet'!E79 -> YUKON | D29: ='Input Sheet'!F79 -> 46046 | E29: ='Input Sheet'!G79 -> 0 | F29: ='Input Sheet'!H79 -> 0 | G29: ='Input Sheet'!I79 -> 0 | H29: ='Input Sheet'!J79 ->  | J29: ='Input Sheet'!L79 -> 24.57 | K29: ='Input Sheet'!M79 -> 0.7 | L29: ='Input Sheet'!N79 -> 2678 | M29: ='Input Sheet'!O79 -> 12.5 | N29: 8.75 | O29: ='Input Sheet'!Q79 -> 0 | P29: ='Input Sheet'!R79 -> 0 | Q29: ='Input Sheet'!S79 -> 0 | R29: ='Input Sheet'!T79 ->  | T29: ='Input Sheet'!V79 -> 8.75 | U29: ='Input Sheet'!W79 -> 0
A30: ='Input Sheet'!C80 -> 632052 | B30: ='Input Sheet'!D80 -> 2015 | C30: ='Input Sheet'!E80 -> SIERRA | D30: ='Input Sheet'!F80 -> 96614 | E30: ='Input Sheet'!G80 -> 112 | F30: ='Input Sheet'!H80 -> 1.4 | G30: ='Input Sheet'!I80 -> 1404 | H30: ='Input Sheet'!J80 -> 28 | I30: 39.2 | J30: ='Input Sheet'!L80 -> 0 | K30: ='Input Sheet'!M80 -> 0 | L30: ='Input Sheet'!N80 -> 0 | M30: ='Input Sheet'!O80 ->  | O30: ='Input Sheet'!Q80 -> 0 | P30: ='Input Sheet'!R80 -> 0 | Q30: ='Input Sheet'!S80 -> 0 | R30: ='Input Sheet'!T80 ->  | T30: ='Input Sheet'!V80 -> 39.2 | U30: ='Input Sheet'!W80 -> 0
A31: ='Input Sheet'!C81 -> 632053 | B31: ='Input Sheet'!D81 -> 2015 | C31: ='Input Sheet'!E81 -> SIERRA | D31: ='Input Sheet'!F81 -> 39783 | E31: ='Input Sheet'!G81 -> 0 | F31: ='Input Sheet'!H81 -> 0 | G31: ='Input Sheet'!I81 -> 0 | H31: ='Input Sheet'!J81 ->  | J31: ='Input Sheet'!L81 -> 26.52 | K31: ='Input Sheet'!M81 -> 0.7 | L31: ='Input Sheet'!N81 -> 2768 | M31: ='Input Sheet'!O81 -> 12.5 | N31: 8.75 | O31: ='Input Sheet'!Q81 -> 0 | P31: ='Input Sheet'!R81 -> 0 | Q31: ='Input Sheet'!S81 -> 0 | R31: ='Input Sheet'!T81 ->  | T31: ='Input Sheet'!V81 -> 8.75 | U31: ='Input Sheet'!W81 -> 0
A32: ='Input Sheet'!C82 -> 632054 | B32: ='Input Sheet'!D82 -> 2013 | C32: ='Input Sheet'!E82 -> TOWN&COUNTRY | D32: ='Input Sheet'!F82 -> 34188 | E32: ='Input Sheet'!G82 -> 0 | F32: ='Input Sheet'!H82 -> 0 | G32: ='Input Sheet'!I82 -> 0 | H32: ='Input Sheet'!J82 ->  | J32: ='Input Sheet'!L82 -> 13.36 | K32: ='Input Sheet'!M82 -> 0.4 | L32: ='Input Sheet'!N82 -> 2860 | M32: ='Input Sheet'!O82 -> 12.5 | N32: 5 | O32: ='Input Sheet'!Q82 -> 0 | P32: ='Input Sheet'!R82 -> 0 | Q32: ='Input Sheet'!S82 -> 0 | R32: ='Input Sheet'!T82 ->  | T32: ='Input Sheet'!V82 -> 5 | U32: ='Input Sheet'!W82 -> 1
A33: ='Input Sheet'!C83 -> 632056 | B33: ='Input Sheet'!D83 -> 2011 | C33: ='Input Sheet'!E83 -> REGAL | D33: ='Input Sheet'!F83 -> 94093 | E33: ='Input Sheet'!G83 -> 0 | F33: ='Input Sheet'!H83 -> 0 | G33: ='Input Sheet'!I83 -> 0 | H33: ='Input Sheet'!J83 ->  | J33: ='Input Sheet'!L83 -> 0 | K33: ='Input Sheet'!M83 -> 0 | L33: ='Input Sheet'!N83 -> 0 | M33: ='Input Sheet'!O83 ->  | O33: ='Input Sheet'!Q83 -> 118 | P33: ='Input Sheet'!R83 -> 1 | Q33: ='Input Sheet'!S83 -> 224 | R33: ='Input Sheet'!T83 -> 30 | S33: 30 | T33: ='Input Sheet'!V83 -> 30 | U33: ='Input Sheet'!W83 -> 1
A34: ='Input Sheet'!C84 -> 632057 | B34: ='Input Sheet'!D84 -> 2016 | C34: ='Input Sheet'!E84 -> EQUINOX | D34: ='Input Sheet'!F84 -> 25334 | E34: ='Input Sheet'!G84 -> 0 | F34: ='Input Sheet'!H84 -> 0 | G34: ='Input Sheet'!I84 -> 0 | H34: ='Input Sheet'!J84 ->  | J34: ='Input Sheet'!L84 -> 26.52 | K34: ='Input Sheet'!M84 -> 0.7 | L34: ='Input Sheet'!N84 -> 2678 | M34: ='Input Sheet'!O84 -> 12.5 | N34: 8.75 | O34: ='Input Sheet'!Q84 -> 0 | P34: ='Input Sheet'!R84 -> 0 | Q34: ='Input Sheet'!S84 -> 0 | R34: ='Input Sheet'!T84 ->  | T34: ='Input Sheet'!V84 -> 8.75 | U34: ='Input Sheet'!W84 -> 0
A35: ='Input Sheet'!C85 -> 632059 | B35: ='Input Sheet'!D85 -> 2008 | C35: ='Input Sheet'!E85 -> TRAILBLAZER | D35: ='Input Sheet'!F85 -> 83900 | E35: ='Input Sheet'!G85 -> 35 | F35: ='Input Sheet'!H85 -> 0.5 | G35: ='Input Sheet'!I85 -> 2816 | H35: ='Input Sheet'!J85 -> 20 | I35: 10 | J35: ='Input Sheet'!L85 -> 13.36 | K35: ='Input Sheet'!M85 -> 0.4 | L35: ='Input Sheet'!N85 -> 2768 | M35: ='Input Sheet'!O85 -> 12.5 | N35: 5 | O35: ='Input Sheet'!Q85 -> 0 | P35: ='Input Sheet'!R85 -> 0 | Q35: ='Input Sheet'!S85 -> 0 | R35: ='Input Sheet'!T85 ->  | T35: ='Input Sheet'!V85 -> 15 | U35: ='Input Sheet'!W85 -> 0
A36: ='Input Sheet'!C86 -> 632061 | B36: ='Input Sheet'!D86 -> 2014 | C36: ='Input Sheet'!E86 -> CRUZE | D36: ='Input Sheet'!F86 -> 71437 | E36: ='Input Sheet'!G86 -> 0 | F36: ='Input Sheet'!H86 -> 0 | G36: ='Input Sheet'!I86 -> 0 | H36: ='Input Sheet'!J86 ->  | J36: ='Input Sheet'!L86 -> 16.57 | K36: ='Input Sheet'!M86 -> 0.4 | L36: ='Input Sheet'!N86 -> 2762 | M36: ='Input Sheet'!O86 -> 12.5 | N36: 5 | O36: ='Input Sheet'!Q86 -> 0 | P36: ='Input Sheet'!R86 -> 0 | Q36: ='Input Sheet'!S86 -> 0 | R36: ='Input Sheet'!T86 ->  | T36: ='Input Sheet'!V86 -> 5 | U36: ='Input Sheet'!W86 -> 0
A37: ='Input Sheet'!C87 -> 632063 | B37: ='Input Sheet'!D87 -> 2014 | C37: ='Input Sheet'!E87 -> ENCORE | D37: ='Input Sheet'!F87 -> 34532 | E37: ='Input Sheet'!G87 -> 0 | F37: ='Input Sheet'!H87 -> 0 | G37: ='Input Sheet'!I87 -> 0 | H37: ='Input Sheet'!J87 ->  | J37: ='Input Sheet'!L87 -> 29.02 | K37: ='Input Sheet'!M87 -> 0.8 | L37: ='Input Sheet'!N87 -> 2768 | M37: ='Input Sheet'!O87 -> 12.5 | N37: 10 | O37: ='Input Sheet'!Q87 -> 0 | P37: ='Input Sheet'!R87 -> 0 | Q37: ='Input Sheet'!S87 -> 0 | R37: ='Input Sheet'!T87 ->  | T37: ='Input Sheet'!V87 -> 10 | U37: ='Input Sheet'!W87 -> 0
A38: ='Input Sheet'!C88 -> 632065 | B38: ='Input Sheet'!D88 -> 2011 | C38: ='Input Sheet'!E88 -> SIERRA | D38: ='Input Sheet'!F88 -> 123962 | E38: ='Input Sheet'!G88 -> 0 | F38: ='Input Sheet'!H88 -> 0 | G38: ='Input Sheet'!I88 -> 0 | H38: ='Input Sheet'!J88 ->  | J38: ='Input Sheet'!L88 -> 26.52 | K38: ='Input Sheet'!M88 -> 0.7 | L38: ='Input Sheet'!N88 -> 2801 | M38: ='Input Sheet'!O88 -> 12.5 | N38: 8.75 | O38: ='Input Sheet'!Q88 -> 0 | P38: ='Input Sheet'!R88 -> 0 | Q38: ='Input Sheet'!S88 -> 0 | R38: ='Input Sheet'!T88 ->  | T38: ='Input Sheet'!V88 -> 8.75 | U38: ='Input Sheet'!W88 -> 0
A39: ='Input Sheet'!C89 -> 632080 | B39: ='Input Sheet'!D89 -> 2017 | C39: ='Input Sheet'!E89 -> TERRAIN | D39: ='Input Sheet'!F89 -> 7048 | E39: ='Input Sheet'!G89 -> 0 | F39: ='Input Sheet'!H89 -> 0 | G39: ='Input Sheet'!I89 -> 0 | H39: ='Input Sheet'!J89 ->  | J39: ='Input Sheet'!L89 -> 20 | K39: ='Input Sheet'!M89 -> 0.4 | L39: ='Input Sheet'!N89 -> 2762 | M39: ='Input Sheet'!O89 -> 12.5 | N39: 5 | O39: ='Input Sheet'!Q89 -> 0 | P39: ='Input Sheet'!R89 -> 0 | Q39: ='Input Sheet'!S89 -> 0 | R39: ='Input Sheet'!T89 ->  | T39: ='Input Sheet'!V89 -> 5 | U39: ='Input Sheet'!W89 -> 0
A40: ='Input Sheet'!C90 -> 632083 | B40: ='Input Sheet'!D90 -> 2014 | C40: ='Input Sheet'!E90 -> EQUINOX | D40: ='Input Sheet'!F90 -> 19572 | E40: ='Input Sheet'!G90 -> 0 | F40: ='Input Sheet'!H90 -> 0 | G40: ='Input Sheet'!I90 -> 0 | H40: ='Input Sheet'!J90 ->  | J40: ='Input Sheet'!L90 -> 16.57 | K40: ='Input Sheet'!M90 -> 0.4 | L40: ='Input Sheet'!N90 -> 2801 | M40: ='Input Sheet'!O90 -> 12.5 | N40: 5 | O40: ='Input Sheet'!Q90 -> 0 | P40: ='Input Sheet'!R90 -> 0 | Q40: ='Input Sheet'!S90 -> 0 | R40: ='Input Sheet'!T90 ->  | T40: ='Input Sheet'!V90 -> 5 | U40: ='Input Sheet'!W90 -> 1
A41: ='Input Sheet'!C91 -> 632085 | B41: ='Input Sheet'!D91 -> 2015 | C41: ='Input Sheet'!E91 -> YUKON | D41: ='Input Sheet'!F91 -> 48065 | E41: ='Input Sheet'!G91 -> 0 | F41: ='Input Sheet'!H91 -> 0 | G41: ='Input Sheet'!I91 -> 0 | H41: ='Input Sheet'!J91 ->  | J41: ='Input Sheet'!L91 -> 26.52 | K41: ='Input Sheet'!M91 -> 0.7 | L41: ='Input Sheet'!N91 -> 2860 | M41: ='Input Sheet'!O91 -> 12.5 | N41: 8.75 | O41: ='Input Sheet'!Q91 -> 177 | P41: ='Input Sheet'!R91 -> 1.5 | Q41: ='Input Sheet'!S91 -> 1354 | R41: ='Input Sheet'!T91 -> 26 | S41: 39 | T41: ='Input Sheet'!V91 -> 47.75 | U41: ='Input Sheet'!W91 -> 0
A42: ='Input Sheet'!C92 -> 632088 | B42: ='Input Sheet'!D92 -> 2015 | C42: ='Input Sheet'!E92 -> TERRAIN | D42: ='Input Sheet'!F92 -> 50363 | E42: ='Input Sheet'!G92 -> 0 | F42: ='Input Sheet'!H92 -> 0 | G42: ='Input Sheet'!I92 -> 0 | H42: ='Input Sheet'!J92 ->  | J42: ='Input Sheet'!L92 -> 16.57 | K42: ='Input Sheet'!M92 -> 0.4 | L42: ='Input Sheet'!N92 -> 1404 | M42: ='Input Sheet'!O92 -> 24 | N42: 9.6 | O42: ='Input Sheet'!Q92 -> 0 | P42: ='Input Sheet'!R92 -> 0 | Q42: ='Input Sheet'!S92 -> 0 | R42: ='Input Sheet'!T92 ->  | T42: ='Input Sheet'!V92 -> 9.6 | U42: ='Input Sheet'!W92 -> 1
A43: ='Input Sheet'!C93 -> 632092 | B43: ='Input Sheet'!D93 -> 2011 | C43: ='Input Sheet'!E93 -> TERRAIN | D43: ='Input Sheet'!F93 -> 74584 | E43: ='Input Sheet'!G93 -> 0 | F43: ='Input Sheet'!H93 -> 0 | G43: ='Input Sheet'!I93 -> 0 | H43: ='Input Sheet'!J93 ->  | J43: ='Input Sheet'!L93 -> 16.57 | K43: ='Input Sheet'!M93 -> 0.4 | L43: ='Input Sheet'!N93 -> 2768 | M43: ='Input Sheet'!O93 -> 12.5 | N43: 5 | O43: ='Input Sheet'!Q93 -> 0 | P43: ='Input Sheet'!R93 -> 0 | Q43: ='Input Sheet'!S93 -> 0 | R43: ='Input Sheet'!T93 ->  | T43: ='Input Sheet'!V93 -> 5 | U43: ='Input Sheet'!W93 -> 1
A44: ='Input Sheet'!C94 -> 632094 | B44: ='Input Sheet'!D94 -> 2015 | C44: ='Input Sheet'!E94 -> ACADIA | D44: ='Input Sheet'!F94 -> 33374 | E44: ='Input Sheet'!G94 -> 92 | F44: ='Input Sheet'!H94 -> 1 | G44: ='Input Sheet'!I94 -> 131 | H44: ='Input Sheet'!J94 -> 92 | I44: 92 | J44: ='Input Sheet'!L94 -> 0 | K44: ='Input Sheet'!M94 -> 0 | L44: ='Input Sheet'!N94 -> 0 | M44: ='Input Sheet'!O94 ->  | O44: ='Input Sheet'!Q94 -> 0 | P44: ='Input Sheet'!R94 -> 0 | Q44: ='Input Sheet'!S94 -> 0 | R44: ='Input Sheet'!T94 ->  | T44: ='Input Sheet'!V94 -> 92 | U44: ='Input Sheet'!W94 -> 0
A45: ='Input Sheet'!C95 -> 633002 | B45: ='Input Sheet'!D95 -> 2017 | C45: ='Input Sheet'!E95 -> ENCLAVE | D45: ='Input Sheet'!F95 -> 8488 | E45: ='Input Sheet'!G95 -> 0 | F45: ='Input Sheet'!H95 -> 0 | G45: ='Input Sheet'!I95 -> 0 | H45: ='Input Sheet'!J95 ->  | J45: ='Input Sheet'!L95 -> 12 | K45: ='Input Sheet'!M95 -> 0.3 | L45: ='Input Sheet'!N95 -> 2087 | M45: ='Input Sheet'!O95 -> 12.5 | N45: 3.75 | O45: ='Input Sheet'!Q95 -> 0 | P45: ='Input Sheet'!R95 -> 0 | Q45: ='Input Sheet'!S95 -> 0 | R45: ='Input Sheet'!T95 ->  | T45: ='Input Sheet'!V95 -> 3.75 | U45: ='Input Sheet'!W95 -> 1
A46: ='Input Sheet'!C96 -> 633004 | B46: ='Input Sheet'!D96 -> 2009 | C46: ='Input Sheet'!E96 -> VUE | D46: ='Input Sheet'!F96 -> 110386 | E46: ='Input Sheet'!G96 -> 0 | F46: ='Input Sheet'!H96 -> 0 | G46: ='Input Sheet'!I96 -> 0 | H46: ='Input Sheet'!J96 ->  | J46: ='Input Sheet'!L96 -> 13.36 | K46: ='Input Sheet'!M96 -> 0.4 | L46: ='Input Sheet'!N96 -> 2087 | M46: ='Input Sheet'!O96 -> 13.5 | N46: 5.4 | O46: ='Input Sheet'!Q96 -> 0 | P46: ='Input Sheet'!R96 -> 0 | Q46: ='Input Sheet'!S96 -> 0 | R46: ='Input Sheet'!T96 ->  | T46: ='Input Sheet'!V96 -> 5.4 | U46: ='Input Sheet'!W96 -> 0
A47: ='Input Sheet'!C97 -> 633005 | B47: ='Input Sheet'!D97 -> 2009 | C47: ='Input Sheet'!E97 -> VIBE | D47: ='Input Sheet'!F97 -> 85066 | E47: ='Input Sheet'!G97 -> 0 | F47: ='Input Sheet'!H97 -> 0 | G47: ='Input Sheet'!I97 -> 0 | H47: ='Input Sheet'!J97 ->  | J47: ='Input Sheet'!L97 -> 58.31 | K47: ='Input Sheet'!M97 -> 1.2 | L47: ='Input Sheet'!N97 -> 2781 | M47: ='Input Sheet'!O97 -> 12.5 | N47: 15 | O47: ='Input Sheet'!Q97 -> 0 | P47: ='Input Sheet'!R97 -> 0 | Q47: ='Input Sheet'!S97 -> 0 | R47: ='Input Sheet'!T97 ->  | T47: ='Input Sheet'!V97 -> 15 | U47: ='Input Sheet'!W97 -> 0
A48: ='Input Sheet'!C98 -> 633006 | B48: ='Input Sheet'!D98 -> 2008 | C48: ='Input Sheet'!E98 -> ENVOY | D48: ='Input Sheet'!F98 -> 135506 | E48: ='Input Sheet'!G98 -> 0 | F48: ='Input Sheet'!H98 -> 0 | G48: ='Input Sheet'!I98 -> 0 | H48: ='Input Sheet'!J98 ->  | J48: ='Input Sheet'!L98 -> 23.31 | K48: ='Input Sheet'!M98 -> 0.7 | L48: ='Input Sheet'!N98 -> 2087 | M48: ='Input Sheet'!O98 -> 13.5 | N48: 9.45 | O48: ='Input Sheet'!Q98 -> 0 | P48: ='Input Sheet'!R98 -> 0 | Q48: ='Input Sheet'!S98 -> 0 | R48: ='Input Sheet'!T98 ->  | T48: ='Input Sheet'!V98 -> 9.45 | U48: ='Input Sheet'!W98 -> 0
A49: ='Input Sheet'!C99 -> 633019 | B49: ='Input Sheet'!D99 -> 2015 | C49: ='Input Sheet'!E99 -> ENCLAVE | D49: ='Input Sheet'!F99 -> 39354 | E49: ='Input Sheet'!G99 -> 0 | F49: ='Input Sheet'!H99 -> 0 | G49: ='Input Sheet'!I99 -> 0 | H49: ='Input Sheet'!J99 ->  | J49: ='Input Sheet'!L99 -> 16.57 | K49: ='Input Sheet'!M99 -> 0.4 | L49: ='Input Sheet'!N99 -> 2781 | M49: ='Input Sheet'!O99 -> 12.5 | N49: 5 | O49: ='Input Sheet'!Q99 -> 0 | P49: ='Input Sheet'!R99 -> 0 | Q49: ='Input Sheet'!S99 -> 0 | R49: ='Input Sheet'!T99 ->  | T49: ='Input Sheet'!V99 -> 5 | U49: ='Input Sheet'!W99 -> 1
A50: ='Input Sheet'!C100 -> 633021 | B50: ='Input Sheet'!D100 -> 2017 | C50: ='Input Sheet'!E100 -> TAHOE | D50: ='Input Sheet'!F100 -> 7329 | E50: ='Input Sheet'!G100 -> 0 | F50: ='Input Sheet'!H100 -> 0 | G50: ='Input Sheet'!I100 -> 0 | H50: ='Input Sheet'!J100 ->  | J50: ='Input Sheet'!L100 -> 26.52 | K50: ='Input Sheet'!M100 -> 0.7 | L50: ='Input Sheet'!N100 -> 2762 | M50: ='Input Sheet'!O100 -> 12.5 | N50: 8.75 | O50: ='Input Sheet'!Q100 -> 0 | P50: ='Input Sheet'!R100 -> 0 | Q50: ='Input Sheet'!S100 -> 0 | R50: ='Input Sheet'!T100 ->  | T50: ='Input Sheet'!V100 -> 8.75 | U50: ='Input Sheet'!W100 -> 0
A51: ='Input Sheet'!C101 -> 633022 | B51: ='Input Sheet'!D101 -> 2016 | C51: ='Input Sheet'!E101 -> ENCORE | D51: ='Input Sheet'!F101 -> 16176 | E51: ='Input Sheet'!G101 -> 0 | F51: ='Input Sheet'!H101 -> 0 | G51: ='Input Sheet'!I101 -> 0 | H51: ='Input Sheet'!J101 ->  | J51: ='Input Sheet'!L101 -> 26.52 | K51: ='Input Sheet'!M101 -> 0.7 | L51: ='Input Sheet'!N101 -> 2678 | M51: ='Input Sheet'!O101 -> 12.5 | N51: 8.75 | O51: ='Input Sheet'!Q101 -> 0 | P51: ='Input Sheet'!R101 -> 0 | Q51: ='Input Sheet'!S101 -> 0 | R51: ='Input Sheet'!T101 ->  | T51: ='Input Sheet'!V101 -> 8.75 | U51: ='Input Sheet'!W101 -> 0
A52: ='Input Sheet'!C102 -> 633024 | B52: ='Input Sheet'!D102 -> 2013 | C52: ='Input Sheet'!E102 -> LACROSSE | D52: ='Input Sheet'!F102 -> 80933 | E52: ='Input Sheet'!G102 -> 0 | F52: ='Input Sheet'!H102 -> 0 | G52: ='Input Sheet'!I102 -> 0 | H52: ='Input Sheet'!J102 ->  | J52: ='Input Sheet'!L102 -> 46.52 | K52: ='Input Sheet'!M102 -> 1 | L52: ='Input Sheet'!N102 -> 2762 | M52: ='Input Sheet'!O102 -> 12.5 | N52: 12.5 | O52: ='Input Sheet'!Q102 -> 1852.6 | P52: ='Input Sheet'!R102 -> 15.7 | Q52: ='Input Sheet'!S102 -> 61 | R52: ='Input Sheet'!T102 -> 34 | S52: 533.8 | T52: ='Input Sheet'!V102 -> 546.3 | U52: ='Input Sheet'!W102 -> 0
A53: ='Input Sheet'!C103 -> 633028 | B53: ='Input Sheet'!D103 -> 2016 | C53: ='Input Sheet'!E103 -> SIERRA | D53: ='Input Sheet'!F103 -> 20646 | E53: ='Input Sheet'!G103 -> 0 | F53: ='Input Sheet'!H103 -> 0 | G53: ='Input Sheet'!I103 -> 0 | H53: ='Input Sheet'!J103 ->  | J53: ='Input Sheet'!L103 -> 26.52 | K53: ='Input Sheet'!M103 -> 0.7 | L53: ='Input Sheet'!N103 -> 2768 | M53: ='Input Sheet'!O103 -> 12.5 | N53: 8.75 | O53: ='Input Sheet'!Q103 -> 0 | P53: ='Input Sheet'!R103 -> 0 | Q53: ='Input Sheet'!S103 -> 0 | R53: ='Input Sheet'!T103 ->  | T53: ='Input Sheet'!V103 -> 8.75 | U53: ='Input Sheet'!W103 -> 0
A54: ='Input Sheet'!C104 -> 633029 | B54: ='Input Sheet'!D104 -> 2017 | C54: ='Input Sheet'!E104 -> YUKON | D54: ='Input Sheet'!F104 -> 13642 | E54: ='Input Sheet'!G104 -> 0 | F54: ='Input Sheet'!H104 -> 0 | G54: ='Input Sheet'!I104 -> 0 | H54: ='Input Sheet'!J104 ->  | J54: ='Input Sheet'!L104 -> 24.57 | K54: ='Input Sheet'!M104 -> 0.7 | L54: ='Input Sheet'!N104 -> 2781 | M54: ='Input Sheet'!O104 -> 12.5 | N54: 8.75 | O54: ='Input Sheet'!Q104 -> 0 | P54: ='Input Sheet'!R104 -> 0 | Q54: ='Input Sheet'!S104 -> 0 | R54: ='Input Sheet'!T104 ->  | T54: ='Input Sheet'!V104 -> 8.75 | U54: ='Input Sheet'!W104 -> 0
A55: ='Input Sheet'!C105 -> 633035 | B55: ='Input Sheet'!D105 -> 2004 | C55: ='Input Sheet'!E105 -> IMPALA | D55: ='Input Sheet'!F105 -> 27046 | E55: ='Input Sheet'!G105 -> 0 | F55: ='Input Sheet'!H105 -> 0 | G55: ='Input Sheet'!I105 -> 0 | H55: ='Input Sheet'!J105 ->  | J55: ='Input Sheet'!L105 -> 0 | K55: ='Input Sheet'!M105 -> 0 | L55: ='Input Sheet'!N105 -> 0 | M55: ='Input Sheet'!O105 ->  | O55: ='Input Sheet'!Q105 -> 236 | P55: ='Input Sheet'!R105 -> 2 | Q55: ='Input Sheet'!S105 -> 2331 | R55: ='Input Sheet'!T105 -> 19 | S55: 38 | T55: ='Input Sheet'!V105 -> 38 | U55: ='Input Sheet'!W105 -> 1
A56: RO's 51-100 | D56: Totals | E56: =SUM(E6:E55) -> 767.05 | F56: =SUM(F6:F55) -> 9.8 | I56: =SUM(I6:I55) ->  | J56: =SUM(J6:J55) -> 999.7 | K56: =SUM(K6:K55) -> 25.6 | N56: =SUM(N6:N55) ->  | O56: =SUM(O6:O55) -> 5290.12 | P56: =SUM(P6:P55) -> 44.2 | S56: =SUM(S6:S55) ->  | T56: =SUM(T6:T55) -> 1907.9 | U56: =COUNTIF(U5:U55,1) -> 18
A57: Date of Study: | E57: C Labor | J57: M Labor | O57: R Labor | T57: Total Cost of Labor | U57: One Item Repair Order
A58: Study Compiled by | E58: Labor Sales | F58: Flat Rate Hours | G58: Technician Number | H58: Pay Per FRH | I58: Labor Cost | J58: Labor Sales | K58: Flat Rate Hours | L58: Technician Number | M58: Pay Per FRH | N58: Labor Cost | O58: Labor Sales | P58: Flat Rate Hours | Q58: Technician Number | R58: Pay Per FRH | S58: Labor Cost

Sheet Summary Report
C1: Repair Order Analysis Summary Report
E3: Sales in Dollars | G3: FRH's on RO's
I4: Averages | J4: Analysis
C5: Competitive | E5: ='RO Report 1-50'!E56+'RO Report 51-100'!E56 -> 2729.64 | F5: ÷ | G5: ='RO Report 1-50'!F56+'RO Report 51-100'!F56 -> 30.2 | H5: = | I5: =IF(ISERROR(E5/G5),"",E5/G5) -> 90.38543046 | J5: FRH Average
C6: Maintenance | E6: ='RO Report 1-50'!J56+'RO Report 51-100'!J56 -> 2368.1 | F6: ÷ | G6: ='RO Report 1-50'!K56+'RO Report 51-100'!K56 -> 53.3 | H6: = | I6: =IF(ISERROR(E6/G6),"",E6/G6) -> 44.42964353 | J6: FRH Average
C7: Repair | E7: ='RO Report 1-50'!O56+'RO Report 51-100'!O56 -> 8078.06 | F7: ÷ | G7: ='RO Report 1-50'!P56+'RO Report 51-100'!P56 -> 67.7 | H7: = | I7: =IF(ISERROR(E7/G7),"",E7/G7) -> 119.321418 | J7: FRH Average
C8: Totals | E8: =SUM(E5:E7) -> 13175.8 | F8: ÷ | G8: =SUM(G5:G7) -> 151.2 | H8: = | I8: =IF(ISERROR(E8/G8),"",E8/G8) -> 87.14153439 | J8: Customer ELR
H9: Target Labor Rate | I9: 85 | J9: Per FRH
C10: Total Ro's in Sample | E10: 100 | H10: Difference | I10: =IF(ISERROR(I8-I9),"",I8-I9) -> 2.141534392 | J10: Per FRH
C12: Cost of Labor
C13: Total Cost of Labor | E13: ='Input Sheet'!V106 -> 3315.66 | F13: ÷ | G13: Total Sales | H13: = | I13: =IF(ISERROR(E13/E8),"",E13/E8) -> 0.2516477178 | J13: Percent Cost of Sales
C14: Total Cost of Labor | E14: =E13 -> 3315.66 | F14: ÷ | G14: Total FRH's | H14: = | I14: =IF(ISERROR(E14/G8),"",E14/G8) -> 21.92896825 | J14: Cost per FRH
C16: Repair Order Measurements
C17: Total Labor Sales | E17: =E8 -> 13175.8 | F17: ÷ | G17: Total RO's | H17: = | I17: =IF(ISERROR(E17/E10),"",E17/E10) -> 131.758 | J17: Avg Labor per RO
C18: Total FRH's | E18: =G8 -> 151.2 | F18: ÷ | G18: Total RO's | H18: = | I18: =IF(ISERROR(E18/E10),"",E18/E10) -> 1.512 | J18: Avg FRH's per RO
C19: Menu Sales | F19: ÷ | G19: Total RO's | H19: = | J19: Percent Menu Sales
C20: Competitive FRH's | E20: =G5 -> 30.2 | F20: ÷ | G20: Total FRH's | H20: = | I20: =IF(ISERROR(E20/G8),"",(E20/G8)) -> 0.1997354497 | J20: Percent Competitive
C21: Maintenance FRH's | E21: =G6 -> 53.3 | F21: ÷ | G21: Total FRH's | H21: = | I21: =IF(ISERROR(E21/G8),"",(E21/G8)) -> 0.3525132275 | J21: Percent Maintenance
C22: Repair FRH' | E22: =G7 -> 67.7 | F22: ÷ | G22: Total FRH's | H22: = | I22: =IF(ISERROR(E22/G8),"",E22/G8) -> 0.4477513228 | J22: Percent Repair
C23: One item RO's | E23: ='RO Report 1-50'!U56+'RO Report 51-100'!U56 -> 33 | F23: ÷ | G23: Total RO's | H23: = | I23: =IF(ISERROR(E23/E10),"",E23/E10) -> 0.33 | J23: Percent One Item RO
C25: Model Year Analysis
C26: =YEAR(Title!K17)+1 -> 2018 | D26: =YEAR(Title!K17) -> 2017 | E26: =YEAR(Title!K17)-1 -> 2016 | G26: =YEAR(Title!K17)-2 -> 2015 | H26: =YEAR(Title!K17)-3 -> 2014 | J26: =YEAR(Title!K17)-4 -> 2013 | K26: Older | L26: Total
C27: =COUNTIF('Input Sheet'!D6:D105,C26) -> 0 | D27: =COUNTIF('Input Sheet'!D6:D105,D26) -> 5 | E27: =COUNTIF('Input Sheet'!D6:D105,E26) -> 18 | G27: =COUNTIF('Input Sheet'!D6:D105,G26) -> 18 | H27: =COUNTIF('Input Sheet'!D6:D105,H26) -> 11 | J27: =COUNTIF('Input Sheet'!D6:D105,J26) -> 6 | K27: =L27-(SUM(C27:J27)) -> 42 | L27: =DCOUNTA('Input Sheet'!C4:F105,"Year",'Input Sheet'!D4:D105) -> 100
C28: =IF(ISERROR(C27/L27),"",C27/L27) -> 0 | D28: =IF(ISERROR(D27/L27),"",D27/L27) -> 0.05 | E28: =IF(ISERROR(E27/L27),"",E27/L27) -> 0.18 | G28: =IF(ISERROR(G27/L27),"",G27/L27) -> 0.18 | H28: =IF(ISERROR(H27/L27),"",H27/L27) -> 0.11 | J28: =IF(ISERROR(J27/L27),"",J27/L27) -> 0.06 | K28: =IF(ISERROR(K27/L27),"",K27/L27) -> 0.42
